Workbook

Sheet Family Tree
B1: Vyberte evidenční číslo | D1: =DATA!Q1 -> BERAN_REG | JMENO | NAROZENI | VRH | Majitel | Bonita | POHLAVI | GENOTYP | V100D
D2: =VLOOKUP(F19,DATA!$C$2:$Q$1900,15,0) -> FLI-0001 | FLIP | 2009.2.7 | 2 | Berkovcová L | ER | | ARR/ARR |
B4: =DATA1!B68 ->  | C4: =IFERROR(VLOOKUP(B4,DATA!$C$2:$Q$1900,15,0),"") -> 
C5: =DATA1!B66 -> 99002DAW00034400 | D5: =IFERROR(VLOOKUP(C5,DATA!$C$2:$Q$1900,15,0),"") -> | | | | | | Mal | | | F5: NL
B6: =DATA1!B67 ->  | C6: =IFERROR(VLOOKUP(B6,DATA!$C$2:$Q$1900,15,0),"") -> 
D7: =DATA1!B8 -> NL00216477900143 | E7: =IFERROR(VLOOKUP(D7,DATA!$C$2:$Q$1900,15,0),"") -> | | | 2 | | | Mal | |
B8: =DATA1!B60 ->  | C8: =IFERROR(VLOOKUP(B8,DATA!$C$2:$Q$1900,15,0),"") -> 
C9: =DATA1!B58 -> 9901200ESI000110 | D9: =IFERROR(VLOOKUP(C9,DATA!$C$2:$Q$1900,15,0),"") -> | | | | | | Fem | |
B10: =DATA1!B59 ->  | C10: =IFERROR(VLOOKUP(B10,DATA!$C$2:$Q$1900,15,0),"") -> 
E11: =DATA1!B4 -> NL00255933900049 | F11: =IFERROR(VLOOKUP(E11,DATA!$C$2:$Q$1900,15,0),"") -> | | | 3 | | | Mal | |
B12: =DATA1!B44 -> 9901200VSB000010 | C12: =IFERROR(VLOOKUP(B12,DATA!$C$2:$Q$1900,15,0),"") -> | | | | | | Mal | |
C13: =DATA1!B50 -> NL00255933900006 | D13: =IFERROR(VLOOKUP(C13,DATA!$C$2:$Q$1900,15,0),"") -> | | | | | | Mal | |
B14: =DATA1!B43 -> 9901200SBN000170 | C14: =IFERROR(VLOOKUP(B14,DATA!$C$2:$Q$1900,15,0),"") -> | | | | | | Fem | |
D15: =DATA1!B7 -> NL00109990803101 | E15: =IFERROR(VLOOKUP(D15,DATA!$C$2:$Q$1900,15,0),"") -> | | | 3 | | | Fem | |
B16: =DATA1!B52 ->  | C16: =IFERROR(VLOOKUP(B16,DATA!$C$2:$Q$1900,15,0),"") -> 
C17: =DATA1!B42 -> NL00202181200218 | D17: =IFERROR(VLOOKUP(C17,DATA!$C$2:$Q$1900,15,0),"") -> | | | | | | Fem | |
B18: =DATA1!B51 ->  | C18: =IFERROR(VLOOKUP(B18,DATA!$C$2:$Q$1900,15,0),"") -> 
F19: NL00109990360000
B20: =DATA1!B36 ->  | C20: =IFERROR(VLOOKUP(B20,DATA!$C$2:$Q$1900,15,0),"") -> 
C21: =DATA1!B34 ->  | D21: =IFERROR(VLOOKUP(C21,DATA!$C$2:$Q$1900,15,0),"") -> 
B22: =DATA1!B35 ->  | C22: =IFERROR(VLOOKUP(B22,DATA!$C$2:$Q$1900,15,0),"") -> 
D23: =DATA1!B6 -> 9901200CHA000010 | E23: =IFERROR(VLOOKUP(D23,DATA!$C$2:$Q$1900,15,0),"") -> | | | | | | Mal | |
B24: =DATA1!B28 ->  | C24: =IFERROR(VLOOKUP(B24,DATA!$C$2:$Q$1900,15,0),"") -> 
C25: =DATA1!B26 ->  | D25: =IFERROR(VLOOKUP(C25,DATA!$C$2:$Q$1900,15,0),"") -> 
B26: =DATA1!B27 ->  | C26: =IFERROR(VLOOKUP(B26,DATA!$C$2:$Q$1900,15,0),"") -> 
E27: =DATA1!B3 -> NL00109990603330 | F27: =IFERROR(VLOOKUP(E27,DATA!$C$2:$Q$1900,15,0),"") -> | | | 3 | | | Fem | |
B28: =DATA1!B20 -> 0000000000000000 | C28: =IFERROR(VLOOKUP(B28,DATA!$C$2:$Q$1900,15,0),"") -> XNA | XNA | | | | | Mal | |
C29: =DATA1!B18 -> 9901200VSB000010 | D29: =IFERROR(VLOOKUP(C29,DATA!$C$2:$Q$1900,15,0),"") -> | | | | | | Mal | |
B30: =DATA1!B19 -> 0000000000000000 | C30: =IFERROR(VLOOKUP(B30,DATA!$C$2:$Q$1900,15,0),"") -> XNA | XNA | | | | | Mal | |
D31: =DATA1!B5 -> 9901200SBN002190 | E31: =IFERROR(VLOOKUP(D31,DATA!$C$2:$Q$1900,15,0),"") -> | | | 4 | | | Fem | |
B32: =DATA1!B12 -> 0000000000000000 | C32: =IFERROR(VLOOKUP(B32,DATA!$C$2:$Q$1900,15,0),"") -> XNA | XNA | | | | | Mal | |
C33: =DATA1!B10 -> 9901200SBN000170 | D33: =IFERROR(VLOOKUP(C33,DATA!$C$2:$Q$1900,15,0),"") -> | | | | | | Fem | |
B34: =DATA1!B11 -> 0000000000000000 | C34: =IFERROR(VLOOKUP(B34,DATA!$C$2:$Q$1900,15,0),"") -> XNA | XNA | | | | | Mal | |

Sheet DATA (hidden)
B1: ID | C1: UC | D1: BERAN_REG | E1: JMENO | F1: FEMALE_ID | G1: MALE_ID | H1: NAROZENI | I1: VRH | J1: Majitel | K1: Bonita | L1: POHLAVI | M1: GENOTYP | N1: V100D | O1: FEMALE | P1: MALE | Q1: =D1&" | "&E1&" | "&H1&" | "&I1&" | "&J1&" | "&K1&" | "&L1&" | "&M1&" | "&N1 -> BERAN_REG | JMENO | NAROZENI | VRH | Majitel | Bonita | POHLAVI | GENOTYP | V100D
A2: 1 | B2: 607 | C2: 0000000000000000 | D2: XNA | E2: XNA | L2: Mal | Q2: =D2&" | "&E2&" | "&IF(H2<1,"",YEAR(H2)&"."&MONTH(H2)&"."&DAY(H2))&" | "&I2&" | "&J2&" | "&K2&" | "&L2&" | "&M2&" | "&N2 -> XNA | XNA | | | | | Mal | | | T2: =IF(H2<1,"",3) -> 
A3: =A2+1 -> 2 | B3: 14 | C3: 2030400OHA000650 | F3: 489 | G3: 581 | L3: Mal | O3: NL00109990603330 | P3: NL00255933900049 | Q3: =D3&" | "&E3&" | "&IF(H3<1,"",YEAR(H3)&"."&MONTH(H3)&"."&DAY(H3))&" | "&I3&" | "&J3&" | "&K3&" | "&L3&" | "&M3&" | "&N3 -> | | | | | | Mal | |
A4: =A3+1 -> 3 | B4: 13 | C4: 5053400870000000 | F4: 605 | G4: 1197 | L4: Fem | O4: 9902180690000000 | P4: 9901280940000000 | Q4: | | | | | | Fem | |
A5: 4 | B5: 671 | C5: 5053403650000000 | L5: Fem | Q5: | | | | | | Fem | |
A6: 5 | B6: 662 | C6: 50534052511FR000 | L6: Fem | Q6: | | | | | | Fem | |
A7: 6 | B7: 644 | C7: 5053431140087020 | L7: Fem | Q7: | | | | | | Fem | |
A8: 7 | B8: 1308 | C8: 5053462320052000 | L8: Mal | Q8: | | | | | | Mal | |
A9: 8 | B9: 1788 | C9: 9900103300000000 | L9: Mal | Q9: | | | | | | Mal | |
A10: 9 | B10: 1193 | C10: 9900122300000000 | L10: Fem | Q10: | | | | | | Fem | |
A11: 10 | B11: 1620 | C11: 9900137690000000 | L11: Mal | Q11: | | | | | | Mal | |
A12: 11 | B12: 1623 | C12: 9900138700000000 | L12: Mal | Q12: | | | | | | Mal | |
A13: 12 | B13: 1785 | C13: 9900150360000000 | L13: Mal | Q13: | | | | | | Mal | |
A14: 13 | B14: 1196 | C14: 9900197025000000 | L14: Fem | Q14: | | | | | | Fem | |
A15: 14 | B15: 1747 | C15: 99001F9586005700 | L15: Mal | Q15: | | | | | | Mal | |
A16: 15 | B16: 1155 | C16: 99001RA000033770 | L16: Fem | Q16: | | | | | | Fem | |
A17: 16 | B17: 1739 | C17: 99002DAW00034400 | L17: Mal | Q17: | | | | | | Mal | |
A18: 17 | B18: 1113 | C18: 99012000DZ000560 | L18: Fem | Q18: | | | | | | Fem | |
A19: 18 | B19: 1122 | C19: 99012000FA00N430 | L19: Fem | Q19: | | | | | | Fem | |
A20: 19 | B20: 1102 | C20: 99012000WB000400 | L20: Fem | Q20: | | | | | | Fem | |
A21: 20 | B21: 1704 | C21: 99012000WB000600 | L21: Mal | Q21: | | | | | | Mal | |
A22: 21 | B22: 15 | C22: 99012000WB000740 | F22: 607 | G22: 607 | L22: Fem | O22: 0000000000000000 | P22: 0000000000000000 | Q22: | | | | | | Fem | |
A23: 22 | B23: 16 | C23: 99012000WB001190 | F23: 607 | G23: 607 | L23: Fem | O23: 0000000000000000 | P23: 0000000000000000 | Q23: | | | | | | Fem | |
A24: 23 | B24: 1705 | C24: 99012000WB001600 | L24: Mal | Q24: | | | | | | Mal | |
A25: 24 | B25: 1109 | C25: 99012000WB001930 | L25: Fem | Q25: | | | | | | Fem | |
A26: 25 | B26: 1110 | C26: 99012000WB002160 | L26: Fem | Q26: | | | | | | Fem | |
A27: 26 | B27: 17 | C27: 9901200BTV000990 | F27: 607 | G27: 607 | L27: Mal | O27: 0000000000000000 | P27: 0000000000000000 | Q27: | | | | | | Mal | |
A28: 27 | B28: 1161 | C28: 9901200DPU000260 | L28: Fem | Q28: | | | | | | Fem | |
A29: 28 | B29: 1147 | C29: 9901200ESI000110 | L29: Fem | Q29: | | | | | | Fem | |
A30: 29 | B30: 1118 | C30: 9901200FAF00N760 | L30: Fem | Q30: | | | | | | Fem | |
A31: 30 | B31: 1709 | C31: 9901200FAF970710 | L31: Mal | Q31: | | | | | | Mal | |
A32: 31 | B32: 1130 | C32: 9901200FAF990160 | L32: Fem | Q32: | | | | | | Fem | |
A33: 32 | B33: 1128 | C33: 9901200FAF990590 | L33: Fem | Q33: | | | | | | Fem | |
A34: 33 | B34: 1171 | C34: 9901200FBB000530 | L34: Fem | Q34: | | | | | | Fem | |
A35: 34 | B35: 1152 | C35: 9901200FBB000750 | L35: Fem | Q35: | | | | | | Fem | |
A36: 35 | B36: 1151 | C36: 9901200FBB000800 | L36: Fem | Q36: | | | | | | Fem | |
A37: 36 | B37: 1100 | C37: 9901200GRW000320 | L37: Fem | Q37: | | | | | | Fem | |
A38: 37 | B38: 1162 | C38: 9901200HAZ000020 | L38: Fem | Q38: | | | | | | Fem | |
A39: 38 | B39: 18 | C39: 9901200HAZ001030 | F39: 16 | G39: 31 | L39: Mal | O39: 99012000WB001190 | P39: 9901200TBV000710 | Q39: | | | | | | Mal | |
A40: 39 | B40: 1111 | C40: 9901200HHF001210 | L40: Fem | Q40: | | | | | | Fem | |
A41: 40 | B41: 1673 | C41: 9901200CHA000010 | L41: Mal | Q41: | | | | | | Mal | |
A42: 41 | B42: 1159 | C42: 9901200JBA000010 | L42: Fem | Q42: | | | | | | Fem | |
A43: 42 | B43: 1112 | C43: 9901200KGL000550 | L43: Fem | Q43: | | | | | | Fem | |
A44: 43 | B44: 1695 | C44: 9901200KGL000660 | L44: Mal | Q44: | | | | | | Mal | |
A45: 44 | B45: 1042 | C45: 9901200KGP000250 | L45: Fem | Q45: | | | | | | Fem | |
A46: 45 | B46: 1634 | C46: 9901200KGP001310 | L46: Mal | Q46: | | | | | | Mal | |
A47: 46 | B47: 1746 | C47: 9901200KVH000320 | L47: Mal | Q47: | | | | | | Mal | |
A48: 47 | B48: 1103 | C48: 9901200KVH000470 | L48: Fem | Q48: | | | | | | Fem | |
A49: 48 | B49: 1715 | C49: 9901200MGI005280 | L49: Mal | Q49: | | | | | | Mal | |
A50: 49 | B50: 1778 | C50: 9901200MGI005360 | L50: Mal | Q50: | | | | | | Mal | |
A51: 50 | B51: 1156 | C51: 9901200MPU000610 | L51: Fem | Q51: | | | | | | Fem | |
A52: 51 | B52: 1767 | C52: 9901200ODZ001210 | L52: Mal | Q52: | | | | | | Mal | |
A53: 52 | B53: 19 | C53: 9901200OHA000170 | F53: 26 | G53: 585 | L53: Fem | O53: 9901200SBN002190 | P53: NL00262826000001 | Q53: | | | | | | Fem | |
A54: 53 | B54: 20 | C54: 9901200OHA000190 | F54: 586 | G54: 17 | L54: Fem | O54: NL00262826000003 | P54: 9901200BTV000990 | Q54: | | | | | | Fem | |
A55: 54 | B55: 21 | C55: 9901200OHA000650 | F55: 489 | G55: 581 | L55: Mal | O55: NL00109990603330 | P55: NL00255933900049 | Q55: | | | | | | Mal | |
A56: 55 | B56: 1095 | C56: 9901200OWE000030 | L56: Fem | Q56: | | | | | | Fem | |
A57: 56 | B57: 1141 | C57: 9901200OWE001310 | L57: Fem | Q57: | | | | | | Fem | |
A58: 57 | B58: 1703 | C58: 9901200OWE001800 | L58: Mal | Q58: | | | | | | Mal | |
A59: 58 | B59: 1740 | C59: 9901200OWE003180 | L59: Mal | Q59: | | | | | | Mal | |
A60: 59 | B60: 1117 | C60: 9901200PYWF95860 | L60: Mal | Q60: | | | | | | Mal | |
A61: 60 | B61: 1116 | C61: 9901200SAN000220 | L61: Fem | Q61: | | | | | | Fem | |
A62: 61 | B62: 1187 | C62: 9901200SAN000940 | L62: Fem | Q62: | | | | | | Fem | |
A63: 62 | B63: 22 | C63: 9901200SAN001010 | F63: 607 | G63: 607 | L63: Mal | O63: 0000000000000000 | P63: 0000000000000000 | Q63: | | | | | | Mal | |
A64: 63 | B64: 1047 | C64: 9901200SAN001170 | L64: Fem | Q64: | | | | | | Fem | |
A65: 64 | B65: 23 | C65: 9901200SBN000170 | F65: 607 | G65: 607 | L65: Fem | O65: 0000000000000000 | P65: 0000000000000000 | Q65: | | | | | | Fem | |
A66: 65 | B66: 1694 | C66: 9901200SBN000320 | L66: Mal | Q66: | | | | | | Mal | |
A67: 66 | B67: 1164 | C67: 9901200SBN000860 | L67: Fem | Q67: =D67&" | "&E67&" | "&IF(H67<1,"",YEAR(H67)&"."&MONTH(H67)&"."&DAY(H67))&" | "&I67&" | "&J67&" | "&K67&" | "&L67&" | "&M67&" | "&N67 -> | | | | | | Fem | |
A68: =A67+1 -> 67 | B68: 1733 | C68: 9901200SBN001310 | L68: Mal | Q68: | | | | | | Mal | |
A69: 68 | B69: 24 | C69: 9901200SBN002000 | F69: 607 | G69: 607 | L69: Fem | O69: 0000000000000000 | P69: 0000000000000000 | Q69: | | | | | | Fem | |
A70: 69 | B70: 1753 | C70: 9901200SBN002090 | L70: Mal | Q70: | | | | | | Mal | |
A71: 70 | B71: 25 | C71: 9901200SBN002160 | F71: 607 | G71: 607 | L71: Fem | O71: 0000000000000000 | P71: 0000000000000000 | Q71: | | | | | | Fem | |
A72: 71 | B72: 26 | C72: 9901200SBN002190 | F72: 23 | G72: 32 | I72: 4 | L72: Fem | O72: 9901200SBN000170 | P72: 9901200VSB000010 | Q72: | | | 4 | | | Fem | |
A73: 72 | B73: 1682 | C73: 9901200SBN002220 | L73: Mal | Q73: | | | | | | Mal | |
A74: 73 | B74: 1756 | C74: 9901200SBN002250 | L74: Mal | Q74: | | | | | | Mal | |
A75: 74 | B75: 27 | C75: 9901200SBN002340 | F75: 607 | G75: 607 | L75: Mal | O75: 0000000000000000 | P75: 0000000000000000 | Q75: | | | | | | Mal | |
A76: 75 | B76: 28 | C76: 9901200SBN002500 | F76: 25 | G76: 27 | L76: Fem | O76: 9901200SBN002160 | P76: 9901200SBN002340 | Q76: | | | | | | Fem | |
A77: 76 | B77: 1123 | C77: 9901200SBN002710 | L77: Fem | Q77: | | | | | | Fem | |
A78: 77 | B78: 1186 | C78: 9901200SBN002940 | L78: Fem | Q78: | | | | | | Fem | |
A79: 78 | B79: 1716 | C79: 9901200SBN003230 | L79: Mal | Q79: | | | | | | Mal | |
A80: 79 | B80: 1127 | C80: 9901200SBN003240 | L80: Fem | Q80: | | | | | | Fem | |
A81: 80 | B81: 29 | C81: 9901200SBN003520 | F81: 603 | G81: 602 | L81: Mal | O81: UK00030351303358 | P81: UK00030342200057 | Q81: | | | | | | Mal | |
A82: 81 | B82: 1718 | C82: 9901200SBN003600 | L82: Mal | Q82: | | | | | | Mal | |
A83: 82 | B83: 1133 | C83: 9901200SBN003640 | L83: Fem | Q83: | | | | | | Fem | |
A84: 83 | B84: 30 | C84: 9901200SRE000930 | F84: 607 | G84: 607 | O84: 0000000000000000 | P84: 0000000000000000 | Q84: | | | | | | | |
A85: 84 | B85: 1090 | C85: 9901200SRU000830 | L85: Fem | Q85: | | | | | | Fem | |
A86: 85 | B86: 1701 | C86: 9901200SRU000840 | L86: Mal | Q86: | | | | | | Mal | |
A87: 86 | B87: 1154 | C87: 9901200TBV000180 | L87: Fem | Q87: | | | | | | Fem | |
A88: 87 | B88: 1146 | C88: 9901200TBV000430 | L88: Fem | Q88: | | | | | | Fem | |
A89: 88 | B89: 1638 | C89: 9901200TBV000600 | L89: Mal | Q89: | | | | | | Mal | |
A90: 89 | B90: 31 | C90: 9901200TBV000710 | F90: 607 | G90: 607 | L90: Mal | O90: 0000000000000000 | P90: 0000000000000000 | Q90: | | | | | | Mal | |
A91: 90 | B91: 1692 | C91: 9901200TBV000780 | L91: Mal | Q91: | | | | | | Mal | |
A92: 91 | B92: 1114 | C92: 9901200TBV000790 | L92: Fem | Q92: | | | | | | Fem | |
A93: 92 | B93: 1738 | C93: 9901200TBV000840 | L93: Mal | Q93: | | | | | | Mal | |
A94: 93 | B94: 1706 | C94: 9901200TBV001070 | L94: Mal | Q94: | | | | | | Mal | |
A95: 94 | B95: 1763 | C95: 9901200TBV001170 | L95: Mal | Q95: | | | | | | Mal | |
A96: 95 | B96: 1148 | C96: 9901200TBV001460 | L96: Fem | Q96: | | | | | | Fem | |
A97: 96 | B97: 1751 | C97: 9901200TBV001540 | L97: Mal | Q97: | | | | | | Mal | |
A98: 97 | B98: 1771 | C98: 9901200TGI000030 | L98: Mal | Q98: | | | | | | Mal | |
A99: 98 | B99: 32 | C99: 9901200VSB000010 | F99: 607 | G99: 607 | L99: Mal | O99: 0000000000000000 | P99: 0000000000000000 | Q99: | | | | | | Mal | |
A100: 99 | B100: 1142 | C100: 9901200VWT000640 | L100: Fem | Q100: | | | | | | Fem | |
A101: 100 | B101: 1115 | C101: 9901200VWT000800 | L101: Fem | Q101: | | | | | | Fem | |
A102: 101 | B102: 1197 | C102: 9901280940000000 | L102: Mal | Q102: | | | | | | Mal | |
A103: 102 | B103: 1043 | C103: 99012C0KGL001940 | L103: Fem | Q103: | | | | | | Fem | |
A104: 103 | B104: 1743 | C104: 99012DOB00011500 | L104: Mal | Q104: | | | | | | Mal | |
A105: 104 | B105: 33 | C105: 99012f9586005700 | F105: 607 | G105: 607 | O105: 0000000000000000 | P105: 0000000000000000 | Q105: | | | | | | | |
A106: 105 | B106: 1030 | C106: 990210001100KGL0 | L106: Fem | Q106: | | | | | | Fem | |
A107: 106 | B107: 1032 | C107: 990210002400BRL0 | L107: Fem | Q107: | | | | | | Fem | |
A108: 107 | B108: 1248 | C108: 9902100051000000 | L108: Mal | Q108: | | | | | | Mal | |
A109: 108 | B109: 1622 | C109: 990210008700RGE0 | L109: Mal | Q109: | | | | | | Mal | |
A110: 109 | B110: 1624 | C110: 990210013200KGP0 | L110: Mal | Q110: | | | | | | Mal | |
A111: 110 | B111: 1029 | C111: 9902120040000000 | L111: Fem | Q111: | | | | | | Fem | |
A112: 111 | B112: 1028 | C112: 9902140250000000 | L112: Fem | Q112: | | | | | | Fem | |
A113: 112 | B113: 1255 | C113: 9902140550JS0000 | L113: Mal | Q113: | | | | | | Mal | |
A114: 113 | B114: 1621 | C114: 9902160580000000 | L114: Mal | Q114: | | | | | | Mal | |
A115: 114 | B115: 663 | C115: 9902161040JS0000 | L115: Fem | Q115: | | | | | | Fem | |
A116: 115 | B116: 605 | C116: 9902180690000000 | L116: Fem | Q116: | | | | | | Fem | |
A117: 116 | B117: 657 | C117: 9902198012000000 | L117: Fem | Q117: | | | | | | Fem | |
A118: 117 | B118: 1249 | C118: 9902198094000000 | L118: Mal | Q118: | | | | | | Mal | |
A119: 118 | B119: 656 | C119: 9902199077000000 | L119: Fem | Q119: | | | | | | Fem | |
A120: 119 | B120: 34 | C120: CZ00000001507525 | F120: 439 | G120: 438 | N120: 32 | O120: FR00000000990113 | P120: FR00000000980094 | Q120: | | | | | | | | 32
A121: 120 | B121: 35 | C121: CZ00000001508525 | F121: 13 | G121: 438 | N121: 32 | O121: 5053400870000000 | P121: FR00000000980094 | Q121: | | | | | | | | 32
A122: 121 | B122: 36 | C122: CZ00000001509525 | F122: 436 | G122: 440 | N122: 33 | O122: FR00000000970035 | P122: FR00000000990161 | Q122: | | | | | | | | 33
A123: 122 | B123: 37 | C123: CZ00000002551052 | F123: 13 | G123: 71 | N123: 36 | O123: 5053400870000000 | P123: CZ00000006700052 | Q123: | | | | | | | | 36
A124: 123 | B124: 38 | C124: CZ00000002552052 | F124: 41 | G124: 71 | O124: CZ00000003113505 | P124: CZ00000006700052 | Q124: | | | | | | | |
A125: 124 | B125: 39 | C125: CZ00000002554052 | F125: 439 | G125: 71 | N125: 35 | O125: FR00000000990113 | P125: CZ00000006700052 | Q125: | | | | | | | | 35
A126: 125 | B126: 40 | C126: CZ00000002556052 | F126: 43 | G126: 71 | N126: 31 | O126: CZ00000003115505 | P126: CZ00000006700052 | Q126: | | | | | | | | 31
A127: 126 | B127: 41 | C127: CZ00000003113505 | F127: 439 | G127: 438 | L127: Fem | N127: 29 | O127: FR00000000990113 | P127: FR00000000980094 | Q127: | | | | | | Fem | | 29
A128: 127 | B128: 42 | C128: CZ00000003114505 | F128: 13 | G128: 438 | L128: Fem | O128: 5053400870000000 | P128: FR00000000980094 | Q128: | | | | | | Fem | |
A129: 128 | B129: 43 | C129: CZ00000003115505 | F129: 436 | G129: 440 | L129: Fem | N129: 30 | O129: FR00000000970035 | P129: FR00000000990161 | Q129: | | | | | | Fem | | 30
A130: 129 | B130: 44 | C130: CZ00000003552952 | F130: 439 | G130: 71 | O130: FR00000000990113 | P130: CZ00000006700052 | Q130: | | | | | | | |
A131: 130 | B131: 45 | C131: CZ00000003554952 | F131: 41 | G131: 71 | O131: CZ00000003113505 | P131: CZ00000006700052 | Q131: =D131&" | "&E131&" | "&IF(H131<1,"",YEAR(H131)&"."&MONTH(H131)&"."&DAY(H131))&" | "&I131&" | "&J131&" | "&K131&" | "&L131&" | "&M131&" | "&N131 -> | | | | | | | |
A132: =A131+1 -> 131 | B132: 46 | C132: CZ00000003555952 | F132: 437 | G132: 71 | O132: FR00000000980011 | P132: CZ00000006700052 | Q132: | | | | | | | |
A133: 132 | B133: 47 | C133: CZ00000003556952 | F133: 436 | G133: 71 | O133: FR00000000970035 | P133: CZ00000006700052 | Q133: | | | | | | | |
A134: 133 | B134: 48 | C134: CZ00000003557952 | F134: 41 | G134: 71 | O134: CZ00000003113505 | P134: CZ00000006700052 | Q134: | | | | | | | |
A135: 134 | B135: 49 | C135: CZ00000003558952 | F135: 42 | G135: 71 | L135: Fem | O135: CZ00000003114505 | P135: CZ00000006700052 | Q135: | | | | | | Fem | |
A136: 135 | B136: 50 | C136: CZ00000003560952 | F136: 607 | G136: 71 | L136: Fem | O136: 0000000000000000 | P136: CZ00000006700052 | Q136: | | | | | | Fem | |
A137: 136 | B137: 51 | C137: CZ00000004181052 | F137: 13 | G137: 71 | N137: 31 | O137: 5053400870000000 | P137: CZ00000006700052 | Q137: | | | | | | | | 31
A138: 137 | B138: 52 | C138: CZ00000004183052 | F138: 644 | G138: 71 | N138: 32 | O138: 5053431140087020 | P138: CZ00000006700052 | Q138: | | | | | | | | 32
A139: 138 | B139: 53 | C139: CZ00000004184052 | F139: 43 | G139: 71 | N139: 31 | O139: CZ00000003115505 | P139: CZ00000006700052 | Q139: | | | | | | | | 31
A140: 139 | B140: 54 | C140: CZ00000004185052 | F140: 41 | G140: 71 | N140: 31 | O140: CZ00000003113505 | P140: CZ00000006700052 | Q140: | | | | | | | | 31
A141: 140 | B141: 55 | C141: CZ00000004186052 | D141: BEL-0006 | E141: BELIER | F141: 41 | G141: 71 | H141: 2004-02-10 | K141: EB | L141: Mal | M141: ARR/ARR | N141: 30 | O141: CZ00000003113505 | P141: CZ00000006700052 | Q141: BEL-0006 | BELIER | 2004.2.10 | | | EB | Mal | ARR/ARR | 30
A142: 141 | B142: 56 | C142: CZ00000004199052 | F142: 436 | G142: 64 | O142: FR00000000970035 | P142: CZ00000006232052 | Q142: | | | | | | | |
A143: 142 | B143: 57 | C143: CZ00000004200052 | F143: 50 | G143: 65 | O143: CZ00000003560952 | P143: CZ00000006233052 | Q143: | | | | | | | |
A144: 143 | B144: 58 | C144: CZ00000005241952 | F144: 439 | G144: 71 | N144: 31 | O144: FR00000000990113 | P144: CZ00000006700052 | Q144: | | | | | | | | 31
A145: 144 | B145: 59 | C145: CZ00000005246952 | F145: 439 | G145: 71 | L145: Fem | O145: FR00000000990113 | P145: CZ00000006700052 | Q145: | | | | | | Fem | |
A146: 145 | B146: 60 | C146: CZ00000005251952 | F146: 437 | G146: 71 | L146: Fem | O146: FR00000000980011 | P146: CZ00000006700052 | Q146: | | | | | | Fem | |
A147: 146 | B147: 61 | C147: CZ00000005252952 | F147: 436 | G147: 71 | N147: 35 | O147: FR00000000970035 | P147: CZ00000006700052 | Q147: | | | | | | | | 35
A148: 147 | B148: 62 | C148: CZ00000005267952 | F148: 41 | G148: 71 | N148: 29 | O148: CZ00000003113505 | P148: CZ00000006700052 | Q148: | | | | | | | | 29
A149: 148 | B149: 63 | C149: CZ00000005280952 | F149: 41 | G149: 71 | N149: 27 | O149: CZ00000003113505 | P149: CZ00000006700052 | Q149: | | | | | | | | 27
A150: 149 | B150: 64 | C150: CZ00000006232052 | D150: EMI-0001 | E150: EMILIO | F150: 656 | G150: 1248 | H150: 2003-02-19 | K150: ER | L150: Mal | M150: ARR/ARR | O150: 9902199077000000 | P150: 9902100051000000 | Q150: EMI-0001 | EMILIO | 2003.2.19 | | | ER | Mal | ARR/ARR |
A151: 150 | B151: 65 | C151: CZ00000006233052 | D151: ERR-0001 | E151: ERROL | F151: 657 | G151: 1249 | H151: 2003-02-19 | I151: 2 | K151: ER | L151: Mal | M151: ARR/ARR | O151: 9902198012000000 | P151: 9902198094000000 | Q151: ERR-0001 | ERROL | 2003.2.19 | 2 | | ER | Mal | ARR/ARR |
A152: 151 | B152: 66 | C152: CZ00000006691052 | D152: BEL-0003 | E152: BELIER | F152: 437 | G152: 71 | H152: 2003-02-27 | K152: EB | M152: ALRR/ALHQ | O152: FR00000000980011 | P152: CZ00000006700052 | Q152: BEL-0003 | BELIER | 2003.2.27 | | | EB | | ALRR/ALHQ |
A153: 152 | B153: 67 | C153: CZ00000006693052 | F153: 436 | G153: 71 | N153: 34 | O153: FR00000000970035 | P153: CZ00000006700052 | Q153: | | | | | | | | 34
A154: 153 | B154: 68 | C154: CZ00000006694052 | F154: 13 | G154: 71 | N154: 36 | O154: 5053400870000000 | P154: CZ00000006700052 | Q154: | | | | | | | | 36
A155: 154 | B155: 69 | C155: CZ00000006695052 | F155: 43 | G155: 71 | N155: 31 | O155: CZ00000003115505 | P155: CZ00000006700052 | Q155: | | | | | | | | 31
A156: 155 | B156: 70 | C156: CZ00000006696052 | F156: 662 | G156: 64 | N156: 34 | O156: 50534052511FR000 | P156: CZ00000006232052 | Q156: | | | | | | | | 34
A157: 156 | B157: 71 | C157: CZ00000006700052 | F157: 663 | G157: 1255 | L157: Mal | O157: 9902161040JS0000 | P157: 9902140550JS0000 | Q157: | | | | | | Mal | |
A158: 157 | B158: 72 | C158: CZ00000018222052 | F158: 439 | G158: 65 | O158: FR00000000990113 | P158: CZ00000006233052 | Q158: | | | | | | | |
A159: 158 | B159: 73 | C159: CZ00000018223052 | F159: 662 | G159: 64 | N159: 39 | O159: 50534052511FR000 | P159: CZ00000006232052 | Q159: | | | | | | | | 39
A160: 159 | B160: 74 | C160: CZ00000021252952 | F160: 42 | G160: 71 | N160: 28 | O160: CZ00000003114505 | P160: CZ00000006700052 | Q160: | | | | | | | | 28
A161: 160 | B161: 75 | C161: CZ00000021253952 | F161: 436 | G161: 64 | L161: Fem | N161: 33 | O161: FR00000000970035 | P161: CZ00000006232052 | Q161: | | | | | | Fem | | 33
A162: 161 | B162: 76 | C162: CZ00000021269952 | F162: 437 | G162: 65 | N162: 31 | O162: FR00000000980011 | P162: CZ00000006233052 | Q162: | | | | | | | | 31
A163: 162 | B163: 77 | C163: CZ00000021270952 | F163: 43 | G163: 71 | O163: CZ00000003115505 | P163: CZ00000006700052 | Q163: | | | | | | | |
A164: 163 | B164: 78 | C164: CZ00000021271952 | F164: 49 | G164: 64 | O164: CZ00000003558952 | P164: CZ00000006232052 | Q164: | | | | | | | |
A165: 164 | B165: 79 | C165: CZ00000021279952 | F165: 671 | G165: 65 | L165: Fem | O165: 5053403650000000 | P165: CZ00000006233052 | Q165: | | | | | | Fem | |
A166: 165 | B166: 80 | C166: CZ00000021280952 | F166: 439 | G166: 65 | L166: Fem | O166: FR00000000990113 | P166: CZ00000006233052 | Q166: | | | | | | Fem | |
A167: 166 | B167: 81 | C167: CZ00000021285952 | F167: 60 | G167: 607 | L167: Fem | N167: 33 | O167: CZ00000005251952 | P167: 0000000000000000 | Q167: | | | | | | Fem | | 33
A168: 167 | B168: 82 | C168: CZ00000021289952 | F168: 79 | G168: 607 | L168: Fem | N168: 31 | O168: CZ00000021279952 | P168: 0000000000000000 | Q168: | | | | | | Fem | | 31
A169: 168 | B169: 83 | C169: CZ00000021298952 | F169: 43 | G169: 607 | L169: Fem | O169: CZ00000003115505 | P169: 0000000000000000 | Q169: | | | | | | Fem | |
A170: 169 | B170: 84 | C170: CZ00000021299952 | F170: 43 | G170: 71 | O170: CZ00000003115505 | P170: CZ00000006700052 | Q170: | | | | | | | |
A171: 170 | B171: 85 | C171: CZ00000021738052 | F171: 439 | G171: 65 | N171: 27 | O171: FR00000000990113 | P171: CZ00000006233052 | Q171: | | | | | | | | 27
A172: 171 | B172: 86 | C172: CZ00000021749052 | F172: 59 | G172: 64 | N172: 26 | O172: CZ00000005246952 | P172: CZ00000006232052 | Q172: | | | | | | | | 26
A173: 172 | B173: 87 | C173: CZ00000021753052 | F173: 60 | G173: 64 | N173: 28 | O173: CZ00000005251952 | P173: CZ00000006232052 | Q173: | | | | | | | | 28
A174: 173 | B174: 88 | C174: CZ00000021754052 | F174: 43 | G174: 64 | N174: 28 | O174: CZ00000003115505 | P174: CZ00000006232052 | Q174: | | | | | | | | 28
A175: 174 | B175: 89 | C175: CZ00000022722053 | F175: 75 | G175: 55 | N175: 34 | O175: CZ00000021253952 | P175: CZ00000004186052 | Q175: | | | | | | | | 34
A176: 175 | B176: 90 | C176: CZ00000022800053 | F176: 590 | G176: 533 | N176: 37 | O176: NL00262826040000 | P176: NL00202181200360 | Q176: | | | | | | | | 37
A177: 176 | B177: 694 | C177: CZ00000023333953 | L177: Fem | Q177: | | | | | | Fem | |
A178: 177 | B178: 91 | C178: CZ00000025217952 | F178: 42 | G178: 607 | N178: 29 | O178: CZ00000003114505 | P178: 0000000000000000 | Q178: | | | | | | | | 29
A179: 178 | B179: 92 | C179: CZ00000025222952 | F179: 80 | G179: 607 | N179: 29 | O179: CZ00000021280952 | P179: 0000000000000000 | Q179: | | | | | | | | 29
A180: 179 | B180: 93 | C180: CZ00000025228952 | F180: 60 | G180: 607 | L180: Fem | N180: 33 | O180: CZ00000005251952 | P180: 0000000000000000 | Q180: | | | | | | Fem | | 33
A181: 180 | B181: 94 | C181: CZ00000025231952 | F181: 59 | G181: 607 | L181: Fem | N181: 28 | O181: CZ00000005246952 | P181: 0000000000000000 | Q181: | | | | | | Fem | | 28
A182: 181 | B182: 95 | C182: CZ00000025246952 | F182: 59 | G182: 64 | L182: Fem | N182: 25 | O182: CZ00000005246952 | P182: CZ00000006232052 | Q182: | | | | | | Fem | | 25
A183: 182 | B183: 96 | C183: CZ00000025255952 | F183: 93 | G183: 65 | N183: 26 | O183: CZ00000025228952 | P183: CZ00000006233052 | Q183: | | | | | | | | 26
A184: 183 | B184: 97 | C184: CZ00000025259952 | F184: 43 | G184: 64 | L184: Fem | N184: 27 | O184: CZ00000003115505 | P184: CZ00000006232052 | Q184: | | | | | | Fem | | 27
A185: 184 | B185: 98 | C185: CZ00000025261952 | F185: 94 | G185: 65 | N185: 26 | O185: CZ00000025231952 | P185: CZ00000006233052 | Q185: | | | | | | | | 26
A186: 185 | B186: 730 | C186: CZ00000026104953 | L186: Fem | Q186: | | | | | | Fem | |
A187: 186 | B187: 99 | C187: CZ00000026150953 | F187: 75 | G187: 537 | L187: Fem | N187: 30 | O187: CZ00000021253952 | P187: NL00202181200391 | Q187: | | | | | | Fem | | 30
A188: 187 | B188: 100 | C188: CZ00000026151953 | F188: 589 | G188: 533 | N188: 29 | O188: NL00262826036000 | P188: NL00202181200360 | Q188: | | | | | | | | 29
A189: 188 | B189: 101 | C189: CZ00000026155953 | F189: 593 | G189: 533 | L189: Fem | N189: 30 | O189: NL00262826044000 | P189: NL00202181200360 | Q189: | | | | | | Fem | | 30
A190: 189 | B190: 102 | C190: CZ00000026970053 | F190: 694 | G190: 537 | N190: 30 | O190: CZ00000023333953 | P190: NL00202181200391 | Q190: | | | | | | | | 30
A191: 190 | B191: 103 | C191: CZ00000026998053 | F191: 694 | G191: 537 | N191: 29 | O191: CZ00000023333953 | P191: NL00202181200391 | Q191: | | | | | | | | 29
A192: 191 | B192: 104 | C192: CZ00000027649052 | F192: 42 | G192: 65 | O192: CZ00000003114505 | P192: CZ00000006233052 | Q192: | | | | | | | |
A193: 192 | B193: 105 | C193: CZ00000027653052 | F193: 49 | G193: 65 | N193: 30 | O193: CZ00000003558952 | P193: CZ00000006233052 | Q193: | | | | | | | | 30
A194: 193 | B194: 106 | C194: CZ00000027678052 | F194: 94 | G194: 64 | N194: 27 | O194: CZ00000025231952 | P194: CZ00000006232052 | Q194: | | | | | | | | 27
A195: 194 | B195: 107 | C195: CZ00000027684052 | F195: 79 | G195: 64 | N195: 41 | O195: CZ00000021279952 | P195: CZ00000006232052 | Q195: =D195&" | "&E195&" | "&IF(H195<1,"",YEAR(H195)&"."&MONTH(H195)&"."&DAY(H195))&" | "&I195&" | "&J195&" | "&K195&" | "&L195&" | "&M195&" | "&N195 -> | | | | | | | | 41
A196: =A195+1 -> 195 | B196: 108 | C196: CZ00000027685052 | F196: 644 | G196: 64 | I196: 1 | N196: 47 | O196: 5053431140087020 | P196: CZ00000006232052 | Q196: | | | 1 | | | | | 47
A197: 196 | B197: 109 | C197: CZ00000027687052 | F197: 436 | G197: 64 | N197: 24 | O197: FR00000000970035 | P197: CZ00000006232052 | Q197: | | | | | | | | 24
A198: 197 | B198: 110 | C198: CZ00000027688052 | F198: 93 | G198: 64 | O198: CZ00000025228952 | P198: CZ00000006232052 | Q198: | | | | | | | |
A199: 198 | B199: 111 | C199: CZ00000027690052 | F199: 83 | G199: 64 | N199: 32 | O199: CZ00000021298952 | P199: CZ00000006232052 | Q199: | | | | | | | | 32
A200: 199 | B200: 112 | C200: CZ00000027693052 | F200: 97 | G200: 65 | N200: 36 | O200: CZ00000025259952 | P200: CZ00000006233052 | Q200: | | | | | | | | 36
... 744 more rows

Sheet DATA1 (hidden)
C1: FEMALE | D1: MALE
B2: ='Family Tree'!F19 -> NL00109990360000 | C2: =IFERROR(VLOOKUP(B2,DATA!$C$1:$P$1999,13,0),"") -> NL00109990603330 | D2: =IFERROR(VLOOKUP(B2,DATA!$C$1:$P$1999,14,0),"") -> NL00255933900049 | E2: 1
A3: FEMALE | B3: =C2 -> NL00109990603330 | C3: =IFERROR(VLOOKUP(B3,DATA!$C$1:$P$1999,13,0),"") -> 9901200SBN002190 | D3: =IFERROR(VLOOKUP(B3,DATA!$C$1:$P$1999,14,0),"") -> 9901200CHA000010 | E3: 2
A4: MALE | B4: =D2 -> NL00255933900049 | C4: =IFERROR(VLOOKUP(B4,DATA!$C$1:$P$1999,13,0),"") -> NL00109990803101 | D4: =IFERROR(VLOOKUP(B4,DATA!$C$1:$P$1999,14,0),"") -> NL00216477900143 | E4: 2
A5: FEMALE | B5: =C3 -> 9901200SBN002190 | C5: =IFERROR(VLOOKUP(B5,DATA!$C$1:$P$1999,13,0),"") -> 9901200SBN000170 | D5: =IFERROR(VLOOKUP(B5,DATA!$C$1:$P$1999,14,0),"") -> 9901200VSB000010 | E5: 3
A6: MALE | B6: =D3 -> 9901200CHA000010 | C6: =IFERROR(VLOOKUP(B6,DATA!$C$1:$P$1999,13,0),"") ->  | D6: =IFERROR(VLOOKUP(B6,DATA!$C$1:$P$1999,14,0),"") ->  | E6: 3
A7: FEMALE | B7: =C4 -> NL00109990803101 | C7: =IFERROR(VLOOKUP(B7,DATA!$C$1:$P$1999,13,0),"") -> NL00202181200218 | D7: =IFERROR(VLOOKUP(B7,DATA!$C$1:$P$1999,14,0),"") -> NL00255933900006 | E7: 3
A8: MALE | B8: =D4 -> NL00216477900143 | C8: =IFERROR(VLOOKUP(B8,DATA!$C$1:$P$1999,13,0),"") -> 9901200ESI000110 | D8: =IFERROR(VLOOKUP(B8,DATA!$C$1:$P$1999,14,0),"") -> 99002DAW00034400 | E8: 3
A10: FEMALE | B10: =C5 -> 9901200SBN000170 | C10: =IFERROR(VLOOKUP(B10,DATA!$C$1:$P$1999,13,0),"") -> 0000000000000000 | D10: =IFERROR(VLOOKUP(B10,DATA!$C$1:$P$1999,14,0),"") -> 0000000000000000 | E10: 3
A11: FEMALE | B11: =C10 -> 0000000000000000 | C11: =IFERROR(VLOOKUP(B11,DATA!$C$1:$P$1999,13,0),"") ->  | D11: =IFERROR(VLOOKUP(B11,DATA!$C$1:$P$1999,14,0),"") ->  | E11: 4 | G11: =IFERROR(C11,"") -> 
A12: MALE | B12: =D10 -> 0000000000000000 | C12: =IFERROR(VLOOKUP(B12,DATA!$C$1:$P$1999,13,0),"") ->  | D12: =IFERROR(VLOOKUP(B12,DATA!$C$1:$P$1999,14,0),"") ->  | E12: 4
A13: FEMALE | B13: =C11 ->  | C13: =IFERROR(VLOOKUP(B13,DATA!$C$1:$P$1999,13,0),"") ->  | D13: =IFERROR(VLOOKUP(B13,DATA!$C$1:$P$1999,14,0),"") ->  | E13: 5
A14: MALE | B14: =D11 ->  | C14: =IFERROR(VLOOKUP(B14,DATA!$C$1:$P$1999,13,0),"") ->  | D14: =IFERROR(VLOOKUP(B14,DATA!$C$1:$P$1999,14,0),"") ->  | E14: 5
A15: FEMALE | B15: =C12 ->  | C15: =IFERROR(VLOOKUP(B15,DATA!$C$1:$P$1999,13,0),"") ->  | D15: =IFERROR(VLOOKUP(B15,DATA!$C$1:$P$1999,14,0),"") ->  | E15: 5
A16: MALE | B16: =D12 ->  | C16: =IFERROR(VLOOKUP(B16,DATA!$C$1:$P$1999,13,0),"") ->  | D16: =IFERROR(VLOOKUP(B16,DATA!$C$1:$P$1999,14,0),"") ->  | E16: 5
A18: MALE | B18: =D5 -> 9901200VSB000010 | C18: =IFERROR(VLOOKUP(B18,DATA!$C$1:$P$1999,13,0),"") -> 0000000000000000 | D18: =IFERROR(VLOOKUP(B18,DATA!$C$1:$P$1999,14,0),"") -> 0000000000000000 | E18: 3
A19: FEMALE | B19: =C18 -> 0000000000000000 | C19: =IFERROR(VLOOKUP(B19,DATA!$C$1:$P$1999,13,0),"") ->  | D19: =IFERROR(VLOOKUP(B19,DATA!$C$1:$P$1999,14,0),"") ->  | E19: 4
A20: MALE | B20: =D18 -> 0000000000000000 | C20: =IFERROR(VLOOKUP(B20,DATA!$C$1:$P$1999,13,0),"") ->  | D20: =IFERROR(VLOOKUP(B20,DATA!$C$1:$P$1999,14,0),"") ->  | E20: 4
A21: FEMALE | B21: =C19 ->  | C21: =IFERROR(VLOOKUP(B21,DATA!$C$1:$P$1999,13,0),"") ->  | D21: =IFERROR(VLOOKUP(B21,DATA!$C$1:$P$1999,14,0),"") ->  | E21: 5
A22: MALE | B22: =D19 ->  | C22: =IFERROR(VLOOKUP(B22,DATA!$C$1:$P$1999,13,0),"") ->  | D22: =IFERROR(VLOOKUP(B22,DATA!$C$1:$P$1999,14,0),"") ->  | E22: 5
A23: FEMALE | B23: =C20 ->  | C23: =IFERROR(VLOOKUP(B23,DATA!$C$1:$P$1999,13,0),"") ->  | D23: =IFERROR(VLOOKUP(B23,DATA!$C$1:$P$1999,14,0),"") ->  | E23: 5
A24: MALE | B24: =D20 ->  | C24: =IFERROR(VLOOKUP(B24,DATA!$C$1:$P$1999,13,0),"") ->  | D24: =IFERROR(VLOOKUP(B24,DATA!$C$1:$P$1999,14,0),"") ->  | E24: 5
A26: FEMALE | B26: =C6 ->  | C26: =IFERROR(VLOOKUP(B26,DATA!$C$1:$P$1999,13,0),"") ->  | D26: =IFERROR(VLOOKUP(B26,DATA!$C$1:$P$1999,14,0),"") ->  | E26: 3
A27: FEMALE | B27: =C26 ->  | C27: =IFERROR(VLOOKUP(B27,DATA!$C$1:$P$1999,13,0),"") ->  | D27: =IFERROR(VLOOKUP(B27,DATA!$C$1:$P$1999,14,0),"") ->  | E27: 4
A28: MALE | B28: =D26 ->  | C28: =IFERROR(VLOOKUP(B28,DATA!$C$1:$P$1999,13,0),"") ->  | D28: =IFERROR(VLOOKUP(B28,DATA!$C$1:$P$1999,14,0),"") ->  | E28: 4
A29: FEMALE | B29: =C27 ->  | C29: =IFERROR(VLOOKUP(B29,DATA!$C$1:$P$1999,13,0),"") ->  | D29: =IFERROR(VLOOKUP(B29,DATA!$C$1:$P$1999,14,0),"") ->  | E29: 5
A30: MALE | B30: =D27 ->  | C30: =IFERROR(VLOOKUP(B30,DATA!$C$1:$P$1999,13,0),"") ->  | D30: =IFERROR(VLOOKUP(B30,DATA!$C$1:$P$1999,14,0),"") ->  | E30: 5
A31: FEMALE | B31: =C28 ->  | C31: =IFERROR(VLOOKUP(B31,DATA!$C$1:$P$1999,13,0),"") ->  | D31: =IFERROR(VLOOKUP(B31,DATA!$C$1:$P$1999,14,0),"") ->  | E31: 5
A32: MALE | B32: =D28 ->  | C32: =IFERROR(VLOOKUP(B32,DATA!$C$1:$P$1999,13,0),"") ->  | D32: =IFERROR(VLOOKUP(B32,DATA!$C$1:$P$1999,14,0),"") ->  | E32: 5
A34: MALE | B34: =D6 ->  | C34: =IFERROR(VLOOKUP(B34,DATA!$C$1:$P$1999,13,0),"") ->  | D34: =IFERROR(VLOOKUP(B34,DATA!$C$1:$P$1999,14,0),"") ->  | E34: 3
A35: FEMALE | B35: =C34 ->  | C35: =IFERROR(VLOOKUP(B35,DATA!$C$1:$P$1999,13,0),"") ->  | D35: =IFERROR(VLOOKUP(B35,DATA!$C$1:$P$1999,14,0),"") ->  | E35: 4
A36: MALE | B36: =D34 ->  | C36: =IFERROR(VLOOKUP(B36,DATA!$C$1:$P$1999,13,0),"") ->  | D36: =IFERROR(VLOOKUP(B36,DATA!$C$1:$P$1999,14,0),"") ->  | E36: 4
A37: FEMALE | B37: =C35 ->  | C37: =IFERROR(VLOOKUP(B37,DATA!$C$1:$P$1999,13,0),"") ->  | D37: =IFERROR(VLOOKUP(B37,DATA!$C$1:$P$1999,14,0),"") ->  | E37: 5
A38: MALE | B38: =D35 ->  | C38: =IFERROR(VLOOKUP(B38,DATA!$C$1:$P$1999,13,0),"") ->  | D38: =IFERROR(VLOOKUP(B38,DATA!$C$1:$P$1999,14,0),"") ->  | E38: 5
A39: FEMALE | B39: =C36 ->  | C39: =IFERROR(VLOOKUP(B39,DATA!$C$1:$P$1999,13,0),"") ->  | D39: =IFERROR(VLOOKUP(B39,DATA!$C$1:$P$1999,14,0),"") ->  | E39: 5
A40: MALE | B40: =D36 ->  | C40: =IFERROR(VLOOKUP(B40,DATA!$C$1:$P$1999,13,0),"") ->  | D40: =IFERROR(VLOOKUP(B40,DATA!$C$1:$P$1999,14,0),"") ->  | E40: 5
A42: FEMALE | B42: =C7 -> NL00202181200218 | C42: =IFERROR(VLOOKUP(B42,DATA!$C$1:$P$1999,13,0),"") -> 9901200SBN000170 | D42: =IFERROR(VLOOKUP(B42,DATA!$C$1:$P$1999,14,0),"") -> 9901200VSB000010 | E42: 3
A43: FEMALE | B43: =C42 -> 9901200SBN000170 | C43: =IFERROR(VLOOKUP(B43,DATA!$C$1:$P$1999,13,0),"") -> 0000000000000000 | D43: =IFERROR(VLOOKUP(B43,DATA!$C$1:$P$1999,14,0),"") -> 0000000000000000 | E43: 4
A44: MALE | B44: =D42 -> 9901200VSB000010 | C44: =IFERROR(VLOOKUP(B44,DATA!$C$1:$P$1999,13,0),"") -> 0000000000000000 | D44: =IFERROR(VLOOKUP(B44,DATA!$C$1:$P$1999,14,0),"") -> 0000000000000000 | E44: 4
A45: FEMALE | B45: =C43 -> 0000000000000000 | C45: =IFERROR(VLOOKUP(B45,DATA!$C$1:$P$1999,13,0),"") ->  | D45: =IFERROR(VLOOKUP(B45,DATA!$C$1:$P$1999,14,0),"") ->  | E45: 5
A46: MALE | B46: =D43 -> 0000000000000000 | C46: =IFERROR(VLOOKUP(B46,DATA!$C$1:$P$1999,13,0),"") ->  | D46: =IFERROR(VLOOKUP(B46,DATA!$C$1:$P$1999,14,0),"") ->  | E46: 5
A47: FEMALE | B47: =C44 -> 0000000000000000 | C47: =IFERROR(VLOOKUP(B47,DATA!$C$1:$P$1999,13,0),"") ->  | D47: =IFERROR(VLOOKUP(B47,DATA!$C$1:$P$1999,14,0),"") ->  | E47: 5
A48: MALE | B48: =D44 -> 0000000000000000 | C48: =IFERROR(VLOOKUP(B48,DATA!$C$1:$P$1999,13,0),"") ->  | D48: =IFERROR(VLOOKUP(B48,DATA!$C$1:$P$1999,14,0),"") ->  | E48: 5
A50: MALE | B50: =D7 -> NL00255933900006 | C50: =IFERROR(VLOOKUP(B50,DATA!$C$1:$P$1999,13,0),"") ->  | D50: =IFERROR(VLOOKUP(B50,DATA!$C$1:$P$1999,14,0),"") ->  | E50: 3
A51: FEMALE | B51: =C50 ->  | C51: =IFERROR(VLOOKUP(B51,DATA!$C$1:$P$1999,13,0),"") ->  | D51: =IFERROR(VLOOKUP(B51,DATA!$C$1:$P$1999,14,0),"") ->  | E51: 4
A52: MALE | B52: =D50 ->  | C52: =IFERROR(VLOOKUP(B52,DATA!$C$1:$P$1999,13,0),"") ->  | D52: =IFERROR(VLOOKUP(B52,DATA!$C$1:$P$1999,14,0),"") ->  | E52: 4
A53: FEMALE | B53: =C51 ->  | C53: =IFERROR(VLOOKUP(B53,DATA!$C$1:$P$1999,13,0),"") ->  | D53: =IFERROR(VLOOKUP(B53,DATA!$C$1:$P$1999,14,0),"") ->  | E53: 5
A54: MALE | B54: =D51 ->  | C54: =IFERROR(VLOOKUP(B54,DATA!$C$1:$P$1999,13,0),"") ->  | D54: =IFERROR(VLOOKUP(B54,DATA!$C$1:$P$1999,14,0),"") ->  | E54: 5
A55: FEMALE | B55: =C52 ->  | C55: =IFERROR(VLOOKUP(B55,DATA!$C$1:$P$1999,13,0),"") ->  | D55: =IFERROR(VLOOKUP(B55,DATA!$C$1:$P$1999,14,0),"") ->  | E55: 5
A56: MALE | B56: =D52 ->  | C56: =IFERROR(VLOOKUP(B56,DATA!$C$1:$P$1999,13,0),"") ->  | D56: =IFERROR(VLOOKUP(B56,DATA!$C$1:$P$1999,14,0),"") ->  | E56: 5
A58: FEMALE | B58: =C8 -> 9901200ESI000110 | C58: =IFERROR(VLOOKUP(B58,DATA!$C$1:$P$1999,13,0),"") ->  | D58: =IFERROR(VLOOKUP(B58,DATA!$C$1:$P$1999,14,0),"") ->  | E58: 3
A59: FEMALE | B59: =C58 ->  | C59: =IFERROR(VLOOKUP(B59,DATA!$C$1:$P$1999,13,0),"") ->  | D59: =IFERROR(VLOOKUP(B59,DATA!$C$1:$P$1999,14,0),"") ->  | E59: 4
A60: MALE | B60: =D58 ->  | C60: =IFERROR(VLOOKUP(B60,DATA!$C$1:$P$1999,13,0),"") ->  | D60: =IFERROR(VLOOKUP(B60,DATA!$C$1:$P$1999,14,0),"") ->  | E60: 4
A61: FEMALE | B61: =C59 ->  | C61: =IFERROR(VLOOKUP(B61,DATA!$C$1:$P$1999,13,0),"") ->  | D61: =IFERROR(VLOOKUP(B61,DATA!$C$1:$P$1999,14,0),"") ->  | E61: 5
A62: MALE | B62: =D59 ->  | C62: =IFERROR(VLOOKUP(B62,DATA!$C$1:$P$1999,13,0),"") ->  | D62: =IFERROR(VLOOKUP(B62,DATA!$C$1:$P$1999,14,0),"") ->  | E62: 5
A63: FEMALE | B63: =C60 ->  | C63: =IFERROR(VLOOKUP(B63,DATA!$C$1:$P$1999,13,0),"") ->  | D63: =IFERROR(VLOOKUP(B63,DATA!$C$1:$P$1999,14,0),"") ->  | E63: 5
A64: MALE | B64: =D60 ->  | C64: =IFERROR(VLOOKUP(B64,DATA!$C$1:$P$1999,13,0),"") ->  | D64: =IFERROR(VLOOKUP(B64,DATA!$C$1:$P$1999,14,0),"") ->  | E64: 5
A66: MALE | B66: =D8 -> 99002DAW00034400 | C66: =IFERROR(VLOOKUP(B66,DATA!$C$1:$P$1999,13,0),"") ->  | D66: =IFERROR(VLOOKUP(B66,DATA!$C$1:$P$1999,14,0),"") ->  | E66: 3
A67: FEMALE | B67: =C66 ->  | C67: =IFERROR(VLOOKUP(B67,DATA!$C$1:$P$1999,13,0),"") ->  | D67: =IFERROR(VLOOKUP(B67,DATA!$C$1:$P$1999,14,0),"") ->  | E67: 4
A68: MALE | B68: =D66 ->  | C68: =IFERROR(VLOOKUP(B68,DATA!$C$1:$P$1999,13,0),"") ->  | D68: =IFERROR(VLOOKUP(B68,DATA!$C$1:$P$1999,14,0),"") ->  | E68: 4
A69: FEMALE | B69: =C67 ->  | C69: =IFERROR(VLOOKUP(B69,DATA!$C$1:$P$1999,13,0),"") ->  | D69: =IFERROR(VLOOKUP(B69,DATA!$C$1:$P$1999,14,0),"") ->  | E69: 5
A70: MALE | B70: =D67 ->  | C70: =IFERROR(VLOOKUP(B70,DATA!$C$1:$P$1999,13,0),"") ->  | D70: =IFERROR(VLOOKUP(B70,DATA!$C$1:$P$1999,14,0),"") ->  | E70: 5
A71: FEMALE | B71: =C68 ->  | C71: =IFERROR(VLOOKUP(B71,DATA!$C$1:$P$1999,13,0),"") ->  | D71: =IFERROR(VLOOKUP(B71,DATA!$C$1:$P$1999,14,0),"") ->  | E71: 5
A72: MALE | B72: =D68 ->  | C72: =IFERROR(VLOOKUP(B72,DATA!$C$1:$P$1999,13,0),"") ->  | D72: =IFERROR(VLOOKUP(B72,DATA!$C$1:$P$1999,14,0),"") ->  | E72: 5

Sheet Doplnění a změny
A1: U ušních čísel je nutno používat to, které je v registru - ve stejném formátu
A2: Povinné pole
A4: Jedinec - 16znaků | B4: Evidence beran | D4: Ušní číslo - 16 znaků | G4: Z kolika sourozenců | J4: M / F | L4: Přepočtená váha na 100 dnech
A5: Ušní číslo | B5: BERAN_REG | C5: JMENO | D5: Matka | E5: Otec | F5: NAROZENI | G5: VRH | H5: Chovatel | I5: Bonita | J5: POHLAVI | K5: GENOTYP | L5: V100D

Sheet CISEL (hidden)
A1: Mal | C1: ID | D1: Chovatel | E1: CHOV_ID
A2: Fem | C2: 1 | D2: Kvisová M
C3: 2 | D3: Holandsko | E3: 99012
C4: 3 | D4: Pokorná I
C5: 4 | D5: Berkovcová L
C6: 5 | D6: Martin Tuček
C7: 6 | D7: Kováč Jan
C8: 7 | D8: GB
C9: 8 | D9: Francie
C10: 9 | D10: Horáčková P
C11: 10 | D11: Neuwirth M
C12: 11 | D12: Junek Jan

Sheet Přehled databáze
A1: =DATA!C1 -> UC | B1: =DATA!D1 -> BERAN_REG | C1: =DATA!E1 -> JMENO | D1: =DATA!H1 -> NAROZENI | E1: =DATA!I1 -> VRH | F1: =DATA!J1 -> Majitel | G1: =DATA!K1 -> Bonita | H1: =DATA!L1 -> POHLAVI | I1: =DATA!M1 -> GENOTYP | J1: =DATA!N1 -> V100D | K1: =DATA!O1 -> FEMALE | L1: =DATA!P1 -> MALE
A2: =DATA!C2 -> 0000000000000000 | B2: =DATA!D2 -> XNA | C2: =DATA!E2 -> XNA | D2: =DATA!H2 -> 0 | E2: =DATA!I2 -> 0 | F2: =DATA!J2 ->  | G2: =DATA!K2 ->  | H2: =DATA!L2 -> Mal | I2: =DATA!M2 ->  | J2: =DATA!N2 -> 0 | K2: =DATA!O2 ->  | L2: =DATA!P2 -> 
A3: =DATA!C3 -> 2030400OHA000650 | B3: =DATA!D3 ->  | C3: =DATA!E3 ->  | D3: =DATA!H3 -> 0 | E3: =DATA!I3 -> 0 | F3: =DATA!J3 ->  | G3: =DATA!K3 ->  | H3: =DATA!L3 -> Mal | I3: =DATA!M3 ->  | J3: =DATA!N3 -> 0 | K3: =DATA!O3 -> NL00109990603330 | L3: =DATA!P3 -> NL00255933900049
A4: =DATA!C4 -> 5053400870000000 | B4: =DATA!D4 ->  | C4: =DATA!E4 ->  | D4: =DATA!H4 -> 0 | E4: =DATA!I4 -> 0 | F4: =DATA!J4 ->  | G4: =DATA!K4 ->  | H4: =DATA!L4 -> Fem | I4: =DATA!M4 ->  | J4: =DATA!N4 -> 0 | K4: =DATA!O4 -> 9902180690000000 | L4: =DATA!P4 -> 9901280940000000
A5: =DATA!C5 -> 5053403650000000 | B5: =DATA!D5 ->  | C5: =DATA!E5 ->  | D5: =DATA!H5 -> 0 | E5: =DATA!I5 -> 0 | F5: =DATA!J5 ->  | G5: =DATA!K5 ->  | H5: =DATA!L5 -> Fem | I5: =DATA!M5 ->  | J5: =DATA!N5 -> 0 | K5: =DATA!O5 ->  | L5: =DATA!P5 -> 
A6: =DATA!C6 -> 50534052511FR000 | B6: =DATA!D6 ->  | C6: =DATA!E6 ->  | D6: =DATA!H6 -> 0 | E6: =DATA!I6 -> 0 | F6: =DATA!J6 ->  | G6: =DATA!K6 ->  | H6: =DATA!L6 -> Fem | I6: =DATA!M6 ->  | J6: =DATA!N6 -> 0 | K6: =DATA!O6 ->  | L6: =DATA!P6 -> 
A7: =DATA!C7 -> 5053431140087020 | B7: =DATA!D7 ->  | C7: =DATA!E7 ->  | D7: =DATA!H7 -> 0 | E7: =DATA!I7 -> 0 | F7: =DATA!J7 ->  | G7: =DATA!K7 ->  | H7: =DATA!L7 -> Fem | I7: =DATA!M7 ->  | J7: =DATA!N7 -> 0 | K7: =DATA!O7 ->  | L7: =DATA!P7 -> 
A8: =DATA!C8 -> 5053462320052000 | B8: =DATA!D8 ->  | C8: =DATA!E8 ->  | D8: =DATA!H8 -> 0 | E8: =DATA!I8 -> 0 | F8: =DATA!J8 ->  | G8: =DATA!K8 ->  | H8: =DATA!L8 -> Mal | I8: =DATA!M8 ->  | J8: =DATA!N8 -> 0 | K8: =DATA!O8 ->  | L8: =DATA!P8 -> 
A9: =DATA!C9 -> 9900103300000000 | B9: =DATA!D9 ->  | C9: =DATA!E9 ->  | D9: =DATA!H9 -> 0 | E9: =DATA!I9 -> 0 | F9: =DATA!J9 ->  | G9: =DATA!K9 ->  | H9: =DATA!L9 -> Mal | I9: =DATA!M9 ->  | J9: =DATA!N9 -> 0 | K9: =DATA!O9 ->  | L9: =DATA!P9 -> 
A10: =DATA!C10 -> 9900122300000000 | B10: =DATA!D10 ->  | C10: =DATA!E10 ->  | D10: =DATA!H10 -> 0 | E10: =DATA!I10 -> 0 | F10: =DATA!J10 ->  | G10: =DATA!K10 ->  | H10: =DATA!L10 -> Fem | I10: =DATA!M10 ->  | J10: =DATA!N10 -> 0 | K10: =DATA!O10 ->  | L10: =DATA!P10 -> 
A11: =DATA!C11 -> 9900137690000000 | B11: =DATA!D11 ->  | C11: =DATA!E11 ->  | D11: =DATA!H11 -> 0 | E11: =DATA!I11 -> 0 | F11: =DATA!J11 ->  | G11: =DATA!K11 ->  | H11: =DATA!L11 -> Mal | I11: =DATA!M11 ->  | J11: =DATA!N11 -> 0 | K11: =DATA!O11 ->  | L11: =DATA!P11 -> 
A12: =DATA!C12 -> 9900138700000000 | B12: =DATA!D12 ->  | C12: =DATA!E12 ->  | D12: =DATA!H12 -> 0 | E12: =DATA!I12 -> 0 | F12: =DATA!J12 ->  | G12: =DATA!K12 ->  | H12: =DATA!L12 -> Mal | I12: =DATA!M12 ->  | J12: =DATA!N12 -> 0 | K12: =DATA!O12 ->  | L12: =DATA!P12 -> 
A13: =DATA!C13 -> 9900150360000000 | B13: =DATA!D13 ->  | C13: =DATA!E13 ->  | D13: =DATA!H13 -> 0 | E13: =DATA!I13 -> 0 | F13: =DATA!J13 ->  | G13: =DATA!K13 ->  | H13: =DATA!L13 -> Mal | I13: =DATA!M13 ->  | J13: =DATA!N13 -> 0 | K13: =DATA!O13 ->  | L13: =DATA!P13 -> 
A14: =DATA!C14 -> 9900197025000000 | B14: =DATA!D14 ->  | C14: =DATA!E14 ->  | D14: =DATA!H14 -> 0 | E14: =DATA!I14 -> 0 | F14: =DATA!J14 ->  | G14: =DATA!K14 ->  | H14: =DATA!L14 -> Fem | I14: =DATA!M14 ->  | J14: =DATA!N14 -> 0 | K14: =DATA!O14 ->  | L14: =DATA!P14 -> 
A15: =DATA!C15 -> 99001F9586005700 | B15: =DATA!D15 ->  | C15: =DATA!E15 ->  | D15: =DATA!H15 -> 0 | E15: =DATA!I15 -> 0 | F15: =DATA!J15 ->  | G15: =DATA!K15 ->  | H15: =DATA!L15 -> Mal | I15: =DATA!M15 ->  | J15: =DATA!N15 -> 0 | K15: =DATA!O15 ->  | L15: =DATA!P15 -> 
A16: =DATA!C16 -> 99001RA000033770 | B16: =DATA!D16 ->  | C16: =DATA!E16 ->  | D16: =DATA!H16 -> 0 | E16: =DATA!I16 -> 0 | F16: =DATA!J16 ->  | G16: =DATA!K16 ->  | H16: =DATA!L16 -> Fem | I16: =DATA!M16 ->  | J16: =DATA!N16 -> 0 | K16: =DATA!O16 ->  | L16: =DATA!P16 -> 
A17: =DATA!C17 -> 99002DAW00034400 | B17: =DATA!D17 ->  | C17: =DATA!E17 ->  | D17: =DATA!H17 -> 0 | E17: =DATA!I17 -> 0 | F17: =DATA!J17 ->  | G17: =DATA!K17 ->  | H17: =DATA!L17 -> Mal | I17: =DATA!M17 ->  | J17: =DATA!N17 -> 0 | K17: =DATA!O17 ->  | L17: =DATA!P17 -> 
A18: =DATA!C18 -> 99012000DZ000560 | B18: =DATA!D18 ->  | C18: =DATA!E18 ->  | D18: =DATA!H18 -> 0 | E18: =DATA!I18 -> 0 | F18: =DATA!J18 ->  | G18: =DATA!K18 ->  | H18: =DATA!L18 -> Fem | I18: =DATA!M18 ->  | J18: =DATA!N18 -> 0 | K18: =DATA!O18 ->  | L18: =DATA!P18 -> 
A19: =DATA!C19 -> 99012000FA00N430 | B19: =DATA!D19 ->  | C19: =DATA!E19 ->  | D19: =DATA!H19 -> 0 | E19: =DATA!I19 -> 0 | F19: =DATA!J19 ->  | G19: =DATA!K19 ->  | H19: =DATA!L19 -> Fem | I19: =DATA!M19 ->  | J19: =DATA!N19 -> 0 | K19: =DATA!O19 ->  | L19: =DATA!P19 -> 
A20: =DATA!C20 -> 99012000WB000400 | B20: =DATA!D20 ->  | C20: =DATA!E20 ->  | D20: =DATA!H20 -> 0 | E20: =DATA!I20 -> 0 | F20: =DATA!J20 ->  | G20: =DATA!K20 ->  | H20: =DATA!L20 -> Fem | I20: =DATA!M20 ->  | J20: =DATA!N20 -> 0 | K20: =DATA!O20 ->  | L20: =DATA!P20 -> 
A21: =DATA!C21 -> 99012000WB000600 | B21: =DATA!D21 ->  | C21: =DATA!E21 ->  | D21: =DATA!H21 -> 0 | E21: =DATA!I21 -> 0 | F21: =DATA!J21 ->  | G21: =DATA!K21 ->  | H21: =DATA!L21 -> Mal | I21: =DATA!M21 ->  | J21: =DATA!N21 -> 0 | K21: =DATA!O21 ->  | L21: =DATA!P21 -> 
A22: =DATA!C22 -> 99012000WB000740 | B22: =DATA!D22 ->  | C22: =DATA!E22 ->  | D22: =DATA!H22 -> 0 | E22: =DATA!I22 -> 0 | F22: =DATA!J22 ->  | G22: =DATA!K22 ->  | H22: =DATA!L22 -> Fem | I22: =DATA!M22 ->  | J22: =DATA!N22 -> 0 | K22: =DATA!O22 -> 0000000000000000 | L22: =DATA!P22 -> 0000000000000000
A23: =DATA!C23 -> 99012000WB001190 | B23: =DATA!D23 ->  | C23: =DATA!E23 ->  | D23: =DATA!H23 -> 0 | E23: =DATA!I23 -> 0 | F23: =DATA!J23 ->  | G23: =DATA!K23 ->  | H23: =DATA!L23 -> Fem | I23: =DATA!M23 ->  | J23: =DATA!N23 -> 0 | K23: =DATA!O23 -> 0000000000000000 | L23: =DATA!P23 -> 0000000000000000
A24: =DATA!C24 -> 99012000WB001600 | B24: =DATA!D24 ->  | C24: =DATA!E24 ->  | D24: =DATA!H24 -> 0 | E24: =DATA!I24 -> 0 | F24: =DATA!J24 ->  | G24: =DATA!K24 ->  | H24: =DATA!L24 -> Mal | I24: =DATA!M24 ->  | J24: =DATA!N24 -> 0 | K24: =DATA!O24 ->  | L24: =DATA!P24 -> 
A25: =DATA!C25 -> 99012000WB001930 | B25: =DATA!D25 ->  | C25: =DATA!E25 ->  | D25: =DATA!H25 -> 0 | E25: =DATA!I25 -> 0 | F25: =DATA!J25 ->  | G25: =DATA!K25 ->  | H25: =DATA!L25 -> Fem | I25: =DATA!M25 ->  | J25: =DATA!N25 -> 0 | K25: =DATA!O25 ->  | L25: =DATA!P25 -> 
A26: =DATA!C26 -> 99012000WB002160 | B26: =DATA!D26 ->  | C26: =DATA!E26 ->  | D26: =DATA!H26 -> 0 | E26: =DATA!I26 -> 0 | F26: =DATA!J26 ->  | G26: =DATA!K26 ->  | H26: =DATA!L26 -> Fem | I26: =DATA!M26 ->  | J26: =DATA!N26 -> 0 | K26: =DATA!O26 ->  | L26: =DATA!P26 -> 
A27: =DATA!C27 -> 9901200BTV000990 | B27: =DATA!D27 ->  | C27: =DATA!E27 ->  | D27: =DATA!H27 -> 0 | E27: =DATA!I27 -> 0 | F27: =DATA!J27 ->  | G27: =DATA!K27 ->  | H27: =DATA!L27 -> Mal | I27: =DATA!M27 ->  | J27: =DATA!N27 -> 0 | K27: =DATA!O27 -> 0000000000000000 | L27: =DATA!P27 -> 0000000000000000
A28: =DATA!C28 -> 9901200DPU000260 | B28: =DATA!D28 ->  | C28: =DATA!E28 ->  | D28: =DATA!H28 -> 0 | E28: =DATA!I28 -> 0 | F28: =DATA!J28 ->  | G28: =DATA!K28 ->  | H28: =DATA!L28 -> Fem | I28: =DATA!M28 ->  | J28: =DATA!N28 -> 0 | K28: =DATA!O28 ->  | L28: =DATA!P28 -> 
A29: =DATA!C29 -> 9901200ESI000110 | B29: =DATA!D29 ->  | C29: =DATA!E29 ->  | D29: =DATA!H29 -> 0 | E29: =DATA!I29 -> 0 | F29: =DATA!J29 ->  | G29: =DATA!K29 ->  | H29: =DATA!L29 -> Fem | I29: =DATA!M29 ->  | J29: =DATA!N29 -> 0 | K29: =DATA!O29 ->  | L29: =DATA!P29 -> 
A30: =DATA!C30 -> 9901200FAF00N760 | B30: =DATA!D30 ->  | C30: =DATA!E30 ->  | D30: =DATA!H30 -> 0 | E30: =DATA!I30 -> 0 | F30: =DATA!J30 ->  | G30: =DATA!K30 ->  | H30: =DATA!L30 -> Fem | I30: =DATA!M30 ->  | J30: =DATA!N30 -> 0 | K30: =DATA!O30 ->  | L30: =DATA!P30 -> 
A31: =DATA!C31 -> 9901200FAF970710 | B31: =DATA!D31 ->  | C31: =DATA!E31 ->  | D31: =DATA!H31 -> 0 | E31: =DATA!I31 -> 0 | F31: =DATA!J31 ->  | G31: =DATA!K31 ->  | H31: =DATA!L31 -> Mal | I31: =DATA!M31 ->  | J31: =DATA!N31 -> 0 | K31: =DATA!O31 ->  | L31: =DATA!P31 -> 
A32: =DATA!C32 -> 9901200FAF990160 | B32: =DATA!D32 ->  | C32: =DATA!E32 ->  | D32: =DATA!H32 -> 0 | E32: =DATA!I32 -> 0 | F32: =DATA!J32 ->  | G32: =DATA!K32 ->  | H32: =DATA!L32 -> Fem | I32: =DATA!M32 ->  | J32: =DATA!N32 -> 0 | K32: =DATA!O32 ->  | L32: =DATA!P32 -> 
A33: =DATA!C33 -> 9901200FAF990590 | B33: =DATA!D33 ->  | C33: =DATA!E33 ->  | D33: =DATA!H33 -> 0 | E33: =DATA!I33 -> 0 | F33: =DATA!J33 ->  | G33: =DATA!K33 ->  | H33: =DATA!L33 -> Fem | I33: =DATA!M33 ->  | J33: =DATA!N33 -> 0 | K33: =DATA!O33 ->  | L33: =DATA!P33 -> 
A34: =DATA!C34 -> 9901200FBB000530 | B34: =DATA!D34 ->  | C34: =DATA!E34 ->  | D34: =DATA!H34 -> 0 | E34: =DATA!I34 -> 0 | F34: =DATA!J34 ->  | G34: =DATA!K34 ->  | H34: =DATA!L34 -> Fem | I34: =DATA!M34 ->  | J34: =DATA!N34 -> 0 | K34: =DATA!O34 ->  | L34: =DATA!P34 -> 
A35: =DATA!C35 -> 9901200FBB000750 | B35: =DATA!D35 ->  | C35: =DATA!E35 ->  | D35: =DATA!H35 -> 0 | E35: =DATA!I35 -> 0 | F35: =DATA!J35 ->  | G35: =DATA!K35 ->  | H35: =DATA!L35 -> Fem | I35: =DATA!M35 ->  | J35: =DATA!N35 -> 0 | K35: =DATA!O35 ->  | L35: =DATA!P35 -> 
A36: =DATA!C36 -> 9901200FBB000800 | B36: =DATA!D36 ->  | C36: =DATA!E36 ->  | D36: =DATA!H36 -> 0 | E36: =DATA!I36 -> 0 | F36: =DATA!J36 ->  | G36: =DATA!K36 ->  | H36: =DATA!L36 -> Fem | I36: =DATA!M36 ->  | J36: =DATA!N36 -> 0 | K36: =DATA!O36 ->  | L36: =DATA!P36 -> 
A37: =DATA!C37 -> 9901200GRW000320 | B37: =DATA!D37 ->  | C37: =DATA!E37 ->  | D37: =DATA!H37 -> 0 | E37: =DATA!I37 -> 0 | F37: =DATA!J37 ->  | G37: =DATA!K37 ->  | H37: =DATA!L37 -> Fem | I37: =DATA!M37 ->  | J37: =DATA!N37 -> 0 | K37: =DATA!O37 ->  | L37: =DATA!P37 -> 
A38: =DATA!C38 -> 9901200HAZ000020 | B38: =DATA!D38 ->  | C38: =DATA!E38 ->  | D38: =DATA!H38 -> 0 | E38: =DATA!I38 -> 0 | F38: =DATA!J38 ->  | G38: =DATA!K38 ->  | H38: =DATA!L38 -> Fem | I38: =DATA!M38 ->  | J38: =DATA!N38 -> 0 | K38: =DATA!O38 ->  | L38: =DATA!P38 -> 
A39: =DATA!C39 -> 9901200HAZ001030 | B39: =DATA!D39 ->  | C39: =DATA!E39 ->  | D39: =DATA!H39 -> 0 | E39: =DATA!I39 -> 0 | F39: =DATA!J39 ->  | G39: =DATA!K39 ->  | H39: =DATA!L39 -> Mal | I39: =DATA!M39 ->  | J39: =DATA!N39 -> 0 | K39: =DATA!O39 -> 99012000WB001190 | L39: =DATA!P39 -> 9901200TBV000710
A40: =DATA!C40 -> 9901200HHF001210 | B40: =DATA!D40 ->  | C40: =DATA!E40 ->  | D40: =DATA!H40 -> 0 | E40: =DATA!I40 -> 0 | F40: =DATA!J40 ->  | G40: =DATA!K40 ->  | H40: =DATA!L40 -> Fem | I40: =DATA!M40 ->  | J40: =DATA!N40 -> 0 | K40: =DATA!O40 ->  | L40: =DATA!P40 -> 
A41: =DATA!C41 -> 9901200CHA000010 | B41: =DATA!D41 ->  | C41: =DATA!E41 ->  | D41: =DATA!H41 -> 0 | E41: =DATA!I41 -> 0 | F41: =DATA!J41 ->  | G41: =DATA!K41 ->  | H41: =DATA!L41 -> Mal | I41: =DATA!M41 ->  | J41: =DATA!N41 -> 0 | K41: =DATA!O41 ->  | L41: =DATA!P41 -> 
A42: =DATA!C42 -> 9901200JBA000010 | B42: =DATA!D42 ->  | C42: =DATA!E42 ->  | D42: =DATA!H42 -> 0 | E42: =DATA!I42 -> 0 | F42: =DATA!J42 ->  | G42: =DATA!K42 ->  | H42: =DATA!L42 -> Fem | I42: =DATA!M42 ->  | J42: =DATA!N42 -> 0 | K42: =DATA!O42 ->  | L42: =DATA!P42 -> 
A43: =DATA!C43 -> 9901200KGL000550 | B43: =DATA!D43 ->  | C43: =DATA!E43 ->  | D43: =DATA!H43 -> 0 | E43: =DATA!I43 -> 0 | F43: =DATA!J43 ->  | G43: =DATA!K43 ->  | H43: =DATA!L43 -> Fem | I43: =DATA!M43 ->  | J43: =DATA!N43 -> 0 | K43: =DATA!O43 ->  | L43: =DATA!P43 -> 
A44: =DATA!C44 -> 9901200KGL000660 | B44: =DATA!D44 ->  | C44: =DATA!E44 ->  | D44: =DATA!H44 -> 0 | E44: =DATA!I44 -> 0 | F44: =DATA!J44 ->  | G44: =DATA!K44 ->  | H44: =DATA!L44 -> Mal | I44: =DATA!M44 ->  | J44: =DATA!N44 -> 0 | K44: =DATA!O44 ->  | L44: =DATA!P44 -> 
A45: =DATA!C45 -> 9901200KGP000250 | B45: =DATA!D45 ->  | C45: =DATA!E45 ->  | D45: =DATA!H45 -> 0 | E45: =DATA!I45 -> 0 | F45: =DATA!J45 ->  | G45: =DATA!K45 ->  | H45: =DATA!L45 -> Fem | I45: =DATA!M45 ->  | J45: =DATA!N45 -> 0 | K45: =DATA!O45 ->  | L45: =DATA!P45 -> 
A46: =DATA!C46 -> 9901200KGP001310 | B46: =DATA!D46 ->  | C46: =DATA!E46 ->  | D46: =DATA!H46 -> 0 | E46: =DATA!I46 -> 0 | F46: =DATA!J46 ->  | G46: =DATA!K46 ->  | H46: =DATA!L46 -> Mal | I46: =DATA!M46 ->  | J46: =DATA!N46 -> 0 | K46: =DATA!O46 ->  | L46: =DATA!P46 -> 
A47: =DATA!C47 -> 9901200KVH000320 | B47: =DATA!D47 ->  | C47: =DATA!E47 ->  | D47: =DATA!H47 -> 0 | E47: =DATA!I47 -> 0 | F47: =DATA!J47 ->  | G47: =DATA!K47 ->  | H47: =DATA!L47 -> Mal | I47: =DATA!M47 ->  | J47: =DATA!N47 -> 0 | K47: =DATA!O47 ->  | L47: =DATA!P47 -> 
A48: =DATA!C48 -> 9901200KVH000470 | B48: =DATA!D48 ->  | C48: =DATA!E48 ->  | D48: =DATA!H48 -> 0 | E48: =DATA!I48 -> 0 | F48: =DATA!J48 ->  | G48: =DATA!K48 ->  | H48: =DATA!L48 -> Fem | I48: =DATA!M48 ->  | J48: =DATA!N48 -> 0 | K48: =DATA!O48 ->  | L48: =DATA!P48 -> 
A49: =DATA!C49 -> 9901200MGI005280 | B49: =DATA!D49 ->  | C49: =DATA!E49 ->  | D49: =DATA!H49 -> 0 | E49: =DATA!I49 -> 0 | F49: =DATA!J49 ->  | G49: =DATA!K49 ->  | H49: =DATA!L49 -> Mal | I49: =DATA!M49 ->  | J49: =DATA!N49 -> 0 | K49: =DATA!O49 ->  | L49: =DATA!P49 -> 
A50: =DATA!C50 -> 9901200MGI005360 | B50: =DATA!D50 ->  | C50: =DATA!E50 ->  | D50: =DATA!H50 -> 0 | E50: =DATA!I50 -> 0 | F50: =DATA!J50 ->  | G50: =DATA!K50 ->  | H50: =DATA!L50 -> Mal | I50: =DATA!M50 ->  | J50: =DATA!N50 -> 0 | K50: =DATA!O50 ->  | L50: =DATA!P50 -> 
A51: =DATA!C51 -> 9901200MPU000610 | B51: =DATA!D51 ->  | C51: =DATA!E51 ->  | D51: =DATA!H51 -> 0 | E51: =DATA!I51 -> 0 | F51: =DATA!J51 ->  | G51: =DATA!K51 ->  | H51: =DATA!L51 -> Fem | I51: =DATA!M51 ->  | J51: =DATA!N51 -> 0 | K51: =DATA!O51 ->  | L51: =DATA!P51 -> 
A52: =DATA!C52 -> 9901200ODZ001210 | B52: =DATA!D52 ->  | C52: =DATA!E52 ->  | D52: =DATA!H52 -> 0 | E52: =DATA!I52 -> 0 | F52: =DATA!J52 ->  | G52: =DATA!K52 ->  | H52: =DATA!L52 -> Mal | I52: =DATA!M52 ->  | J52: =DATA!N52 -> 0 | K52: =DATA!O52 ->  | L52: =DATA!P52 -> 
A53: =DATA!C53 -> 9901200OHA000170 | B53: =DATA!D53 ->  | C53: =DATA!E53 ->  | D53: =DATA!H53 -> 0 | E53: =DATA!I53 -> 0 | F53: =DATA!J53 ->  | G53: =DATA!K53 ->  | H53: =DATA!L53 -> Fem | I53: =DATA!M53 ->  | J53: =DATA!N53 -> 0 | K53: =DATA!O53 -> 9901200SBN002190 | L53: =DATA!P53 -> NL00262826000001
A54: =DATA!C54 -> 9901200OHA000190 | B54: =DATA!D54 ->  | C54: =DATA!E54 ->  | D54: =DATA!H54 -> 0 | E54: =DATA!I54 -> 0 | F54: =DATA!J54 ->  | G54: =DATA!K54 ->  | H54: =DATA!L54 -> Fem | I54: =DATA!M54 ->  | J54: =DATA!N54 -> 0 | K54: =DATA!O54 -> NL00262826000003 | L54: =DATA!P54 -> 9901200BTV000990
A55: =DATA!C55 -> 9901200OHA000650 | B55: =DATA!D55 ->  | C55: =DATA!E55 ->  | D55: =DATA!H55 -> 0 | E55: =DATA!I55 -> 0 | F55: =DATA!J55 ->  | G55: =DATA!K55 ->  | H55: =DATA!L55 -> Mal | I55: =DATA!M55 ->  | J55: =DATA!N55 -> 0 | K55: =DATA!O55 -> NL00109990603330 | L55: =DATA!P55 -> NL00255933900049
A56: =DATA!C56 -> 9901200OWE000030 | B56: =DATA!D56 ->  | C56: =DATA!E56 ->  | D56: =DATA!H56 -> 0 | E56: =DATA!I56 -> 0 | F56: =DATA!J56 ->  | G56: =DATA!K56 ->  | H56: =DATA!L56 -> Fem | I56: =DATA!M56 ->  | J56: =DATA!N56 -> 0 | K56: =DATA!O56 ->  | L56: =DATA!P56 -> 
A57: =DATA!C57 -> 9901200OWE001310 | B57: =DATA!D57 ->  | C57: =DATA!E57 ->  | D57: =DATA!H57 -> 0 | E57: =DATA!I57 -> 0 | F57: =DATA!J57 ->  | G57: =DATA!K57 ->  | H57: =DATA!L57 -> Fem | I57: =DATA!M57 ->  | J57: =DATA!N57 -> 0 | K57: =DATA!O57 ->  | L57: =DATA!P57 -> 
A58: =DATA!C58 -> 9901200OWE001800 | B58: =DATA!D58 ->  | C58: =DATA!E58 ->  | D58: =DATA!H58 -> 0 | E58: =DATA!I58 -> 0 | F58: =DATA!J58 ->  | G58: =DATA!K58 ->  | H58: =DATA!L58 -> Mal | I58: =DATA!M58 ->  | J58: =DATA!N58 -> 0 | K58: =DATA!O58 ->  | L58: =DATA!P58 -> 
A59: =DATA!C59 -> 9901200OWE003180 | B59: =DATA!D59 ->  | C59: =DATA!E59 ->  | D59: =DATA!H59 -> 0 | E59: =DATA!I59 -> 0 | F59: =DATA!J59 ->  | G59: =DATA!K59 ->  | H59: =DATA!L59 -> Mal | I59: =DATA!M59 ->  | J59: =DATA!N59 -> 0 | K59: =DATA!O59 ->  | L59: =DATA!P59 -> 
A60: =DATA!C60 -> 9901200PYWF95860 | B60: =DATA!D60 ->  | C60: =DATA!E60 ->  | D60: =DATA!H60 -> 0 | E60: =DATA!I60 -> 0 | F60: =DATA!J60 ->  | G60: =DATA!K60 ->  | H60: =DATA!L60 -> Mal | I60: =DATA!M60 ->  | J60: =DATA!N60 -> 0 | K60: =DATA!O60 ->  | L60: =DATA!P60 -> 
A61: =DATA!C61 -> 9901200SAN000220 | B61: =DATA!D61 ->  | C61: =DATA!E61 ->  | D61: =DATA!H61 -> 0 | E61: =DATA!I61 -> 0 | F61: =DATA!J61 ->  | G61: =DATA!K61 ->  | H61: =DATA!L61 -> Fem | I61: =DATA!M61 ->  | J61: =DATA!N61 -> 0 | K61: =DATA!O61 ->  | L61: =DATA!P61 -> 
A62: =DATA!C62 -> 9901200SAN000940 | B62: =DATA!D62 ->  | C62: =DATA!E62 ->  | D62: =DATA!H62 -> 0 | E62: =DATA!I62 -> 0 | F62: =DATA!J62 ->  | G62: =DATA!K62 ->  | H62: =DATA!L62 -> Fem | I62: =DATA!M62 ->  | J62: =DATA!N62 -> 0 | K62: =DATA!O62 ->  | L62: =DATA!P62 -> 
A63: =DATA!C63 -> 9901200SAN001010 | B63: =DATA!D63 ->  | C63: =DATA!E63 ->  | D63: =DATA!H63 -> 0 | E63: =DATA!I63 -> 0 | F63: =DATA!J63 ->  | G63: =DATA!K63 ->  | H63: =DATA!L63 -> Mal | I63: =DATA!M63 ->  | J63: =DATA!N63 -> 0 | K63: =DATA!O63 -> 0000000000000000 | L63: =DATA!P63 -> 0000000000000000
A64: =DATA!C64 -> 9901200SAN001170 | B64: =DATA!D64 ->  | C64: =DATA!E64 ->  | D64: =DATA!H64 -> 0 | E64: =DATA!I64 -> 0 | F64: =DATA!J64 ->  | G64: =DATA!K64 ->  | H64: =DATA!L64 -> Fem | I64: =DATA!M64 ->  | J64: =DATA!N64 -> 0 | K64: =DATA!O64 ->  | L64: =DATA!P64 -> 
A65: =DATA!C65 -> 9901200SBN000170 | B65: =DATA!D65 ->  | C65: =DATA!E65 ->  | D65: =DATA!H65 -> 0 | E65: =DATA!I65 -> 0 | F65: =DATA!J65 ->  | G65: =DATA!K65 ->  | H65: =DATA!L65 -> Fem | I65: =DATA!M65 ->  | J65: =DATA!N65 -> 0 | K65: =DATA!O65 -> 0000000000000000 | L65: =DATA!P65 -> 0000000000000000
A66: =DATA!C66 -> 9901200SBN000320 | B66: =DATA!D66 ->  | C66: =DATA!E66 ->  | D66: =DATA!H66 -> 0 | E66: =DATA!I66 -> 0 | F66: =DATA!J66 ->  | G66: =DATA!K66 ->  | H66: =DATA!L66 -> Mal | I66: =DATA!M66 ->  | J66: =DATA!N66 -> 0 | K66: =DATA!O66 ->  | L66: =DATA!P66 -> 
A67: =DATA!C67 -> 9901200SBN000860 | B67: =DATA!D67 ->  | C67: =DATA!E67 ->  | D67: =DATA!H67 -> 0 | E67: =DATA!I67 -> 0 | F67: =DATA!J67 ->  | G67: =DATA!K67 ->  | H67: =DATA!L67 -> Fem | I67: =DATA!M67 ->  | J67: =DATA!N67 -> 0 | K67: =DATA!O67 ->  | L67: =DATA!P67 -> 
A68: =DATA!C68 -> 9901200SBN001310 | B68: =DATA!D68 ->  | C68: =DATA!E68 ->  | D68: =DATA!H68 -> 0 | E68: =DATA!I68 -> 0 | F68: =DATA!J68 ->  | G68: =DATA!K68 ->  | H68: =DATA!L68 -> Mal | I68: =DATA!M68 ->  | J68: =DATA!N68 -> 0 | K68: =DATA!O68 ->  | L68: =DATA!P68 -> 
A69: =DATA!C69 -> 9901200SBN002000 | B69: =DATA!D69 ->  | C69: =DATA!E69 ->  | D69: =DATA!H69 -> 0 | E69: =DATA!I69 -> 0 | F69: =DATA!J69 ->  | G69: =DATA!K69 ->  | H69: =DATA!L69 -> Fem | I69: =DATA!M69 ->  | J69: =DATA!N69 -> 0 | K69: =DATA!O69 -> 0000000000000000 | L69: =DATA!P69 -> 0000000000000000
A70: =DATA!C70 -> 9901200SBN002090 | B70: =DATA!D70 ->  | C70: =DATA!E70 ->  | D70: =DATA!H70 -> 0 | E70: =DATA!I70 -> 0 | F70: =DATA!J70 ->  | G70: =DATA!K70 ->  | H70: =DATA!L70 -> Mal | I70: =DATA!M70 ->  | J70: =DATA!N70 -> 0 | K70: =DATA!O70 ->  | L70: =DATA!P70 -> 
A71: =DATA!C71 -> 9901200SBN002160 | B71: =DATA!D71 ->  | C71: =DATA!E71 ->  | D71: =DATA!H71 -> 0 | E71: =DATA!I71 -> 0 | F71: =DATA!J71 ->  | G71: =DATA!K71 ->  | H71: =DATA!L71 -> Fem | I71: =DATA!M71 ->  | J71: =DATA!N71 -> 0 | K71: =DATA!O71 -> 0000000000000000 | L71: =DATA!P71 -> 0000000000000000
A72: =DATA!C72 -> 9901200SBN002190 | B72: =DATA!D72 ->  | C72: =DATA!E72 ->  | D72: =DATA!H72 -> 0 | E72: =DATA!I72 -> 4 | F72: =DATA!J72 ->  | G72: =DATA!K72 ->  | H72: =DATA!L72 -> Fem | I72: =DATA!M72 ->  | J72: =DATA!N72 -> 0 | K72: =DATA!O72 -> 9901200SBN000170 | L72: =DATA!P72 -> 9901200VSB000010
A73: =DATA!C73 -> 9901200SBN002220 | B73: =DATA!D73 ->  | C73: =DATA!E73 ->  | D73: =DATA!H73 -> 0 | E73: =DATA!I73 -> 0 | F73: =DATA!J73 ->  | G73: =DATA!K73 ->  | H73: =DATA!L73 -> Mal | I73: =DATA!M73 ->  | J73: =DATA!N73 -> 0 | K73: =DATA!O73 ->  | L73: =DATA!P73 -> 
A74: =DATA!C74 -> 9901200SBN002250 | B74: =DATA!D74 ->  | C74: =DATA!E74 ->  | D74: =DATA!H74 -> 0 | E74: =DATA!I74 -> 0 | F74: =DATA!J74 ->  | G74: =DATA!K74 ->  | H74: =DATA!L74 -> Mal | I74: =DATA!M74 ->  | J74: =DATA!N74 -> 0 | K74: =DATA!O74 ->  | L74: =DATA!P74 -> 
A75: =DATA!C75 -> 9901200SBN002340 | B75: =DATA!D75 ->  | C75: =DATA!E75 ->  | D75: =DATA!H75 -> 0 | E75: =DATA!I75 -> 0 | F75: =DATA!J75 ->  | G75: =DATA!K75 ->  | H75: =DATA!L75 -> Mal | I75: =DATA!M75 ->  | J75: =DATA!N75 -> 0 | K75: =DATA!O75 -> 0000000000000000 | L75: =DATA!P75 -> 0000000000000000
A76: =DATA!C76 -> 9901200SBN002500 | B76: =DATA!D76 ->  | C76: =DATA!E76 ->  | D76: =DATA!H76 -> 0 | E76: =DATA!I76 -> 0 | F76: =DATA!J76 ->  | G76: =DATA!K76 ->  | H76: =DATA!L76 -> Fem | I76: =DATA!M76 ->  | J76: =DATA!N76 -> 0 | K76: =DATA!O76 -> 9901200SBN002160 | L76: =DATA!P76 -> 9901200SBN002340
A77: =DATA!C77 -> 9901200SBN002710 | B77: =DATA!D77 ->  | C77: =DATA!E77 ->  | D77: =DATA!H77 -> 0 | E77: =DATA!I77 -> 0 | F77: =DATA!J77 ->  | G77: =DATA!K77 ->  | H77: =DATA!L77 -> Fem | I77: =DATA!M77 ->  | J77: =DATA!N77 -> 0 | K77: =DATA!O77 ->  | L77: =DATA!P77 -> 
A78: =DATA!C78 -> 9901200SBN002940 | B78: =DATA!D78 ->  | C78: =DATA!E78 ->  | D78: =DATA!H78 -> 0 | E78: =DATA!I78 -> 0 | F78: =DATA!J78 ->  | G78: =DATA!K78 ->  | H78: =DATA!L78 -> Fem | I78: =DATA!M78 ->  | J78: =DATA!N78 -> 0 | K78: =DATA!O78 ->  | L78: =DATA!P78 -> 
A79: =DATA!C79 -> 9901200SBN003230 | B79: =DATA!D79 ->  | C79: =DATA!E79 ->  | D79: =DATA!H79 -> 0 | E79: =DATA!I79 -> 0 | F79: =DATA!J79 ->  | G79: =DATA!K79 ->  | H79: =DATA!L79 -> Mal | I79: =DATA!M79 ->  | J79: =DATA!N79 -> 0 | K79: =DATA!O79 ->  | L79: =DATA!P79 -> 
A80: =DATA!C80 -> 9901200SBN003240 | B80: =DATA!D80 ->  | C80: =DATA!E80 ->  | D80: =DATA!H80 -> 0 | E80: =DATA!I80 -> 0 | F80: =DATA!J80 ->  | G80: =DATA!K80 ->  | H80: =DATA!L80 -> Fem | I80: =DATA!M80 ->  | J80: =DATA!N80 -> 0 | K80: =DATA!O80 ->  | L80: =DATA!P80 -> 
A81: =DATA!C81 -> 9901200SBN003520 | B81: =DATA!D81 ->  | C81: =DATA!E81 ->  | D81: =DATA!H81 -> 0 | E81: =DATA!I81 -> 0 | F81: =DATA!J81 ->  | G81: =DATA!K81 ->  | H81: =DATA!L81 -> Mal | I81: =DATA!M81 ->  | J81: =DATA!N81 -> 0 | K81: =DATA!O81 -> UK00030351303358 | L81: =DATA!P81 -> UK00030342200057
A82: =DATA!C82 -> 9901200SBN003600 | B82: =DATA!D82 ->  | C82: =DATA!E82 ->  | D82: =DATA!H82 -> 0 | E82: =DATA!I82 -> 0 | F82: =DATA!J82 ->  | G82: =DATA!K82 ->  | H82: =DATA!L82 -> Mal | I82: =DATA!M82 ->  | J82: =DATA!N82 -> 0 | K82: =DATA!O82 ->  | L82: =DATA!P82 -> 
A83: =DATA!C83 -> 9901200SBN003640 | B83: =DATA!D83 ->  | C83: =DATA!E83 ->  | D83: =DATA!H83 -> 0 | E83: =DATA!I83 -> 0 | F83: =DATA!J83 ->  | G83: =DATA!K83 ->  | H83: =DATA!L83 -> Fem | I83: =DATA!M83 ->  | J83: =DATA!N83 -> 0 | K83: =DATA!O83 ->  | L83: =DATA!P83 -> 
A84: =DATA!C84 -> 9901200SRE000930 | B84: =DATA!D84 ->  | C84: =DATA!E84 ->  | D84: =DATA!H84 -> 0 | E84: =DATA!I84 -> 0 | F84: =DATA!J84 ->  | G84: =DATA!K84 ->  | H84: =DATA!L84 ->  | I84: =DATA!M84 ->  | J84: =DATA!N84 -> 0 | K84: =DATA!O84 -> 0000000000000000 | L84: =DATA!P84 -> 0000000000000000
A85: =DATA!C85 -> 9901200SRU000830 | B85: =DATA!D85 ->  | C85: =DATA!E85 ->  | D85: =DATA!H85 -> 0 | E85: =DATA!I85 -> 0 | F85: =DATA!J85 ->  | G85: =DATA!K85 ->  | H85: =DATA!L85 -> Fem | I85: =DATA!M85 ->  | J85: =DATA!N85 -> 0 | K85: =DATA!O85 ->  | L85: =DATA!P85 -> 
A86: =DATA!C86 -> 9901200SRU000840 | B86: =DATA!D86 ->  | C86: =DATA!E86 ->  | D86: =DATA!H86 -> 0 | E86: =DATA!I86 -> 0 | F86: =DATA!J86 ->  | G86: =DATA!K86 ->  | H86: =DATA!L86 -> Mal | I86: =DATA!M86 ->  | J86: =DATA!N86 -> 0 | K86: =DATA!O86 ->  | L86: =DATA!P86 -> 
A87: =DATA!C87 -> 9901200TBV000180 | B87: =DATA!D87 ->  | C87: =DATA!E87 ->  | D87: =DATA!H87 -> 0 | E87: =DATA!I87 -> 0 | F87: =DATA!J87 ->  | G87: =DATA!K87 ->  | H87: =DATA!L87 -> Fem | I87: =DATA!M87 ->  | J87: =DATA!N87 -> 0 | K87: =DATA!O87 ->  | L87: =DATA!P87 -> 
A88: =DATA!C88 -> 9901200TBV000430 | B88: =DATA!D88 ->  | C88: =DATA!E88 ->  | D88: =DATA!H88 -> 0 | E88: =DATA!I88 -> 0 | F88: =DATA!J88 ->  | G88: =DATA!K88 ->  | H88: =DATA!L88 -> Fem | I88: =DATA!M88 ->  | J88: =DATA!N88 -> 0 | K88: =DATA!O88 ->  | L88: =DATA!P88 -> 
A89: =DATA!C89 -> 9901200TBV000600 | B89: =DATA!D89 ->  | C89: =DATA!E89 ->  | D89: =DATA!H89 -> 0 | E89: =DATA!I89 -> 0 | F89: =DATA!J89 ->  | G89: =DATA!K89 ->  | H89: =DATA!L89 -> Mal | I89: =DATA!M89 ->  | J89: =DATA!N89 -> 0 | K89: =DATA!O89 ->  | L89: =DATA!P89 -> 
A90: =DATA!C90 -> 9901200TBV000710 | B90: =DATA!D90 ->  | C90: =DATA!E90 ->  | D90: =DATA!H90 -> 0 | E90: =DATA!I90 -> 0 | F90: =DATA!J90 ->  | G90: =DATA!K90 ->  | H90: =DATA!L90 -> Mal | I90: =DATA!M90 ->  | J90: =DATA!N90 -> 0 | K90: =DATA!O90 -> 0000000000000000 | L90: =DATA!P90 -> 0000000000000000
A91: =DATA!C91 -> 9901200TBV000780 | B91: =DATA!D91 ->  | C91: =DATA!E91 ->  | D91: =DATA!H91 -> 0 | E91: =DATA!I91 -> 0 | F91: =DATA!J91 ->  | G91: =DATA!K91 ->  | H91: =DATA!L91 -> Mal | I91: =DATA!M91 ->  | J91: =DATA!N91 -> 0 | K91: =DATA!O91 ->  | L91: =DATA!P91 -> 
A92: =DATA!C92 -> 9901200TBV000790 | B92: =DATA!D92 ->  | C92: =DATA!E92 ->  | D92: =DATA!H92 -> 0 | E92: =DATA!I92 -> 0 | F92: =DATA!J92 ->  | G92: =DATA!K92 ->  | H92: =DATA!L92 -> Fem | I92: =DATA!M92 ->  | J92: =DATA!N92 -> 0 | K92: =DATA!O92 ->  | L92: =DATA!P92 -> 
A93: =DATA!C93 -> 9901200TBV000840 | B93: =DATA!D93 ->  | C93: =DATA!E93 ->  | D93: =DATA!H93 -> 0 | E93: =DATA!I93 -> 0 | F93: =DATA!J93 ->  | G93: =DATA!K93 ->  | H93: =DATA!L93 -> Mal | I93: =DATA!M93 ->  | J93: =DATA!N93 -> 0 | K93: =DATA!O93 ->  | L93: =DATA!P93 -> 
A94: =DATA!C94 -> 9901200TBV001070 | B94: =DATA!D94 ->  | C94: =DATA!E94 ->  | D94: =DATA!H94 -> 0 | E94: =DATA!I94 -> 0 | F94: =DATA!J94 ->  | G94: =DATA!K94 ->  | H94: =DATA!L94 -> Mal | I94: =DATA!M94 ->  | J94: =DATA!N94 -> 0 | K94: =DATA!O94 ->  | L94: =DATA!P94 -> 
A95: =DATA!C95 -> 9901200TBV001170 | B95: =DATA!D95 ->  | C95: =DATA!E95 ->  | D95: =DATA!H95 -> 0 | E95: =DATA!I95 -> 0 | F95: =DATA!J95 ->  | G95: =DATA!K95 ->  | H95: =DATA!L95 -> Mal | I95: =DATA!M95 ->  | J95: =DATA!N95 -> 0 | K95: =DATA!O95 ->  | L95: =DATA!P95 -> 
A96: =DATA!C96 -> 9901200TBV001460 | B96: =DATA!D96 ->  | C96: =DATA!E96 ->  | D96: =DATA!H96 -> 0 | E96: =DATA!I96 -> 0 | F96: =DATA!J96 ->  | G96: =DATA!K96 ->  | H96: =DATA!L96 -> Fem | I96: =DATA!M96 ->  | J96: =DATA!N96 -> 0 | K96: =DATA!O96 ->  | L96: =DATA!P96 -> 
A97: =DATA!C97 -> 9901200TBV001540 | B97: =DATA!D97 ->  | C97: =DATA!E97 ->  | D97: =DATA!H97 -> 0 | E97: =DATA!I97 -> 0 | F97: =DATA!J97 ->  | G97: =DATA!K97 ->  | H97: =DATA!L97 -> Mal | I97: =DATA!M97 ->  | J97: =DATA!N97 -> 0 | K97: =DATA!O97 ->  | L97: =DATA!P97 -> 
A98: =DATA!C98 -> 9901200TGI000030 | B98: =DATA!D98 ->  | C98: =DATA!E98 ->  | D98: =DATA!H98 -> 0 | E98: =DATA!I98 -> 0 | F98: =DATA!J98 ->  | G98: =DATA!K98 ->  | H98: =DATA!L98 -> Mal | I98: =DATA!M98 ->  | J98: =DATA!N98 -> 0 | K98: =DATA!O98 ->  | L98: =DATA!P98 -> 
A99: =DATA!C99 -> 9901200VSB000010 | B99: =DATA!D99 ->  | C99: =DATA!E99 ->  | D99: =DATA!H99 -> 0 | E99: =DATA!I99 -> 0 | F99: =DATA!J99 ->  | G99: =DATA!K99 ->  | H99: =DATA!L99 -> Mal | I99: =DATA!M99 ->  | J99: =DATA!N99 -> 0 | K99: =DATA!O99 -> 0000000000000000 | L99: =DATA!P99 -> 0000000000000000
A100: =DATA!C100 -> 9901200VWT000640 | B100: =DATA!D100 ->  | C100: =DATA!E100 ->  | D100: =DATA!H100 -> 0 | E100: =DATA!I100 -> 0 | F100: =DATA!J100 ->  | G100: =DATA!K100 ->  | H100: =DATA!L100 -> Fem | I100: =DATA!M100 ->  | J100: =DATA!N100 -> 0 | K100: =DATA!O100 ->  | L100: =DATA!P100 -> 
A101: =DATA!C101 -> 9901200VWT000800 | B101: =DATA!D101 ->  | C101: =DATA!E101 ->  | D101: =DATA!H101 -> 0 | E101: =DATA!I101 -> 0 | F101: =DATA!J101 ->  | G101: =DATA!K101 ->  | H101: =DATA!L101 -> Fem | I101: =DATA!M101 ->  | J101: =DATA!N101 -> 0 | K101: =DATA!O101 ->  | L101: =DATA!P101 -> 
A102: =DATA!C102 -> 9901280940000000 | B102: =DATA!D102 ->  | C102: =DATA!E102 ->  | D102: =DATA!H102 -> 0 | E102: =DATA!I102 -> 0 | F102: =DATA!J102 ->  | G102: =DATA!K102 ->  | H102: =DATA!L102 -> Mal | I102: =DATA!M102 ->  | J102: =DATA!N102 -> 0 | K102: =DATA!O102 ->  | L102: =DATA!P102 -> 
A103: =DATA!C103 -> 99012C0KGL001940 | B103: =DATA!D103 ->  | C103: =DATA!E103 ->  | D103: =DATA!H103 -> 0 | E103: =DATA!I103 -> 0 | F103: =DATA!J103 ->  | G103: =DATA!K103 ->  | H103: =DATA!L103 -> Fem | I103: =DATA!M103 ->  | J103: =DATA!N103 -> 0 | K103: =DATA!O103 ->  | L103: =DATA!P103 -> 
A104: =DATA!C104 -> 99012DOB00011500 | B104: =DATA!D104 ->  | C104: =DATA!E104 ->  | D104: =DATA!H104 -> 0 | E104: =DATA!I104 -> 0 | F104: =DATA!J104 ->  | G104: =DATA!K104 ->  | H104: =DATA!L104 -> Mal | I104: =DATA!M104 ->  | J104: =DATA!N104 -> 0 | K104: =DATA!O104 ->  | L104: =DATA!P104 -> 
A105: =DATA!C105 -> 99012f9586005700 | B105: =DATA!D105 ->  | C105: =DATA!E105 ->  | D105: =DATA!H105 -> 0 | E105: =DATA!I105 -> 0 | F105: =DATA!J105 ->  | G105: =DATA!K105 ->  | H105: =DATA!L105 ->  | I105: =DATA!M105 ->  | J105: =DATA!N105 -> 0 | K105: =DATA!O105 -> 0000000000000000 | L105: =DATA!P105 -> 0000000000000000
A106: =DATA!C106 -> 990210001100KGL0 | B106: =DATA!D106 ->  | C106: =DATA!E106 ->  | D106: =DATA!H106 -> 0 | E106: =DATA!I106 -> 0 | F106: =DATA!J106 ->  | G106: =DATA!K106 ->  | H106: =DATA!L106 -> Fem | I106: =DATA!M106 ->  | J106: =DATA!N106 -> 0 | K106: =DATA!O106 ->  | L106: =DATA!P106 -> 
A107: =DATA!C107 -> 990210002400BRL0 | B107: =DATA!D107 ->  | C107: =DATA!E107 ->  | D107: =DATA!H107 -> 0 | E107: =DATA!I107 -> 0 | F107: =DATA!J107 ->  | G107: =DATA!K107 ->  | H107: =DATA!L107 -> Fem | I107: =DATA!M107 ->  | J107: =DATA!N107 -> 0 | K107: =DATA!O107 ->  | L107: =DATA!P107 -> 
A108: =DATA!C108 -> 9902100051000000 | B108: =DATA!D108 ->  | C108: =DATA!E108 ->  | D108: =DATA!H108 -> 0 | E108: =DATA!I108 -> 0 | F108: =DATA!J108 ->  | G108: =DATA!K108 ->  | H108: =DATA!L108 -> Mal | I108: =DATA!M108 ->  | J108: =DATA!N108 -> 0 | K108: =DATA!O108 ->  | L108: =DATA!P108 -> 
A109: =DATA!C109 -> 990210008700RGE0 | B109: =DATA!D109 ->  | C109: =DATA!E109 ->  | D109: =DATA!H109 -> 0 | E109: =DATA!I109 -> 0 | F109: =DATA!J109 ->  | G109: =DATA!K109 ->  | H109: =DATA!L109 -> Mal | I109: =DATA!M109 ->  | J109: =DATA!N109 -> 0 | K109: =DATA!O109 ->  | L109: =DATA!P109 -> 
A110: =DATA!C110 -> 990210013200KGP0 | B110: =DATA!D110 ->  | C110: =DATA!E110 ->  | D110: =DATA!H110 -> 0 | E110: =DATA!I110 -> 0 | F110: =DATA!J110 ->  | G110: =DATA!K110 ->  | H110: =DATA!L110 -> Mal | I110: =DATA!M110 ->  | J110: =DATA!N110 -> 0 | K110: =DATA!O110 ->  | L110: =DATA!P110 -> 
A111: =DATA!C111 -> 9902120040000000 | B111: =DATA!D111 ->  | C111: =DATA!E111 ->  | D111: =DATA!H111 -> 0 | E111: =DATA!I111 -> 0 | F111: =DATA!J111 ->  | G111: =DATA!K111 ->  | H111: =DATA!L111 -> Fem | I111: =DATA!M111 ->  | J111: =DATA!N111 -> 0 | K111: =DATA!O111 ->  | L111: =DATA!P111 -> 
A112: =DATA!C112 -> 9902140250000000 | B112: =DATA!D112 ->  | C112: =DATA!E112 ->  | D112: =DATA!H112 -> 0 | E112: =DATA!I112 -> 0 | F112: =DATA!J112 ->  | G112: =DATA!K112 ->  | H112: =DATA!L112 -> Fem | I112: =DATA!M112 ->  | J112: =DATA!N112 -> 0 | K112: =DATA!O112 ->  | L112: =DATA!P112 -> 
A113: =DATA!C113 -> 9902140550JS0000 | B113: =DATA!D113 ->  | C113: =DATA!E113 ->  | D113: =DATA!H113 -> 0 | E113: =DATA!I113 -> 0 | F113: =DATA!J113 ->  | G113: =DATA!K113 ->  | H113: =DATA!L113 -> Mal | I113: =DATA!M113 ->  | J113: =DATA!N113 -> 0 | K113: =DATA!O113 ->  | L113: =DATA!P113 -> 
A114: =DATA!C114 -> 9902160580000000 | B114: =DATA!D114 ->  | C114: =DATA!E114 ->  | D114: =DATA!H114 -> 0 | E114: =DATA!I114 -> 0 | F114: =DATA!J114 ->  | G114: =DATA!K114 ->  | H114: =DATA!L114 -> Mal | I114: =DATA!M114 ->  | J114: =DATA!N114 -> 0 | K114: =DATA!O114 ->  | L114: =DATA!P114 -> 
A115: =DATA!C115 -> 9902161040JS0000 | B115: =DATA!D115 ->  | C115: =DATA!E115 ->  | D115: =DATA!H115 -> 0 | E115: =DATA!I115 -> 0 | F115: =DATA!J115 ->  | G115: =DATA!K115 ->  | H115: =DATA!L115 -> Fem | I115: =DATA!M115 ->  | J115: =DATA!N115 -> 0 | K115: =DATA!O115 ->  | L115: =DATA!P115 -> 
A116: =DATA!C116 -> 9902180690000000 | B116: =DATA!D116 ->  | C116: =DATA!E116 ->  | D116: =DATA!H116 -> 0 | E116: =DATA!I116 -> 0 | F116: =DATA!J116 ->  | G116: =DATA!K116 ->  | H116: =DATA!L116 -> Fem | I116: =DATA!M116 ->  | J116: =DATA!N116 -> 0 | K116: =DATA!O116 ->  | L116: =DATA!P116 -> 
A117: =DATA!C117 -> 9902198012000000 | B117: =DATA!D117 ->  | C117: =DATA!E117 ->  | D117: =DATA!H117 -> 0 | E117: =DATA!I117 -> 0 | F117: =DATA!J117 ->  | G117: =DATA!K117 ->  | H117: =DATA!L117 -> Fem | I117: =DATA!M117 ->  | J117: =DATA!N117 -> 0 | K117: =DATA!O117 ->  | L117: =DATA!P117 -> 
A118: =DATA!C118 -> 9902198094000000 | B118: =DATA!D118 ->  | C118: =DATA!E118 ->  | D118: =DATA!H118 -> 0 | E118: =DATA!I118 -> 0 | F118: =DATA!J118 ->  | G118: =DATA!K118 ->  | H118: =DATA!L118 -> Mal | I118: =DATA!M118 ->  | J118: =DATA!N118 -> 0 | K118: =DATA!O118 ->  | L118: =DATA!P118 -> 
A119: =DATA!C119 -> 9902199077000000 | B119: =DATA!D119 ->  | C119: =DATA!E119 ->  | D119: =DATA!H119 -> 0 | E119: =DATA!I119 -> 0 | F119: =DATA!J119 ->  | G119: =DATA!K119 ->  | H119: =DATA!L119 -> Fem | I119: =DATA!M119 ->  | J119: =DATA!N119 -> 0 | K119: =DATA!O119 ->  | L119: =DATA!P119 -> 
A120: =DATA!C120 -> CZ00000001507525 | B120: =DATA!D120 ->  | C120: =DATA!E120 ->  | D120: =DATA!H120 -> 0 | E120: =DATA!I120 -> 0 | F120: =DATA!J120 ->  | G120: =DATA!K120 ->  | H120: =DATA!L120 ->  | I120: =DATA!M120 ->  | J120: =DATA!N120 -> 32 | K120: =DATA!O120 -> FR00000000990113 | L120: =DATA!P120 -> FR00000000980094
A121: =DATA!C121 -> CZ00000001508525 | B121: =DATA!D121 ->  | C121: =DATA!E121 ->  | D121: =DATA!H121 -> 0 | E121: =DATA!I121 -> 0 | F121: =DATA!J121 ->  | G121: =DATA!K121 ->  | H121: =DATA!L121 ->  | I121: =DATA!M121 ->  | J121: =DATA!N121 -> 32 | K121: =DATA!O121 -> 5053400870000000 | L121: =DATA!P121 -> FR00000000980094
A122: =DATA!C122 -> CZ00000001509525 | B122: =DATA!D122 ->  | C122: =DATA!E122 ->  | D122: =DATA!H122 -> 0 | E122: =DATA!I122 -> 0 | F122: =DATA!J122 ->  | G122: =DATA!K122 ->  | H122: =DATA!L122 ->  | I122: =DATA!M122 ->  | J122: =DATA!N122 -> 33 | K122: =DATA!O122 -> FR00000000970035 | L122: =DATA!P122 -> FR00000000990161
A123: =DATA!C123 -> CZ00000002551052 | B123: =DATA!D123 ->  | C123: =DATA!E123 ->  | D123: =DATA!H123 -> 0 | E123: =DATA!I123 -> 0 | F123: =DATA!J123 ->  | G123: =DATA!K123 ->  | H123: =DATA!L123 ->  | I123: =DATA!M123 ->  | J123: =DATA!N123 -> 36 | K123: =DATA!O123 -> 5053400870000000 | L123: =DATA!P123 -> CZ00000006700052
A124: =DATA!C124 -> CZ00000002552052 | B124: =DATA!D124 ->  | C124: =DATA!E124 ->  | D124: =DATA!H124 -> 0 | E124: =DATA!I124 -> 0 | F124: =DATA!J124 ->  | G124: =DATA!K124 ->  | H124: =DATA!L124 ->  | I124: =DATA!M124 ->  | J124: =DATA!N124 -> 0 | K124: =DATA!O124 -> CZ00000003113505 | L124: =DATA!P124 -> CZ00000006700052
A125: =DATA!C125 -> CZ00000002554052 | B125: =DATA!D125 ->  | C125: =DATA!E125 ->  | D125: =DATA!H125 -> 0 | E125: =DATA!I125 -> 0 | F125: =DATA!J125 ->  | G125: =DATA!K125 ->  | H125: =DATA!L125 ->  | I125: =DATA!M125 ->  | J125: =DATA!N125 -> 35 | K125: =DATA!O125 -> FR00000000990113 | L125: =DATA!P125 -> CZ00000006700052
A126: =DATA!C126 -> CZ00000002556052 | B126: =DATA!D126 ->  | C126: =DATA!E126 ->  | D126: =DATA!H126 -> 0 | E126: =DATA!I126 -> 0 | F126: =DATA!J126 ->  | G126: =DATA!K126 ->  | H126: =DATA!L126 ->  | I126: =DATA!M126 ->  | J126: =DATA!N126 -> 31 | K126: =DATA!O126 -> CZ00000003115505 | L126: =DATA!P126 -> CZ00000006700052
A127: =DATA!C127 -> CZ00000003113505 | B127: =DATA!D127 ->  | C127: =DATA!E127 ->  | D127: =DATA!H127 -> 0 | E127: =DATA!I127 -> 0 | F127: =DATA!J127 ->  | G127: =DATA!K127 ->  | H127: =DATA!L127 -> Fem | I127: =DATA!M127 ->  | J127: =DATA!N127 -> 29 | K127: =DATA!O127 -> FR00000000990113 | L127: =DATA!P127 -> FR00000000980094
A128: =DATA!C128 -> CZ00000003114505 | B128: =DATA!D128 ->  | C128: =DATA!E128 ->  | D128: =DATA!H128 -> 0 | E128: =DATA!I128 -> 0 | F128: =DATA!J128 ->  | G128: =DATA!K128 ->  | H128: =DATA!L128 -> Fem | I128: =DATA!M128 ->  | J128: =DATA!N128 -> 0 | K128: =DATA!O128 -> 5053400870000000 | L128: =DATA!P128 -> FR00000000980094
A129: =DATA!C129 -> CZ00000003115505 | B129: =DATA!D129 ->  | C129: =DATA!E129 ->  | D129: =DATA!H129 -> 0 | E129: =DATA!I129 -> 0 | F129: =DATA!J129 ->  | G129: =DATA!K129 ->  | H129: =DATA!L129 -> Fem | I129: =DATA!M129 ->  | J129: =DATA!N129 -> 30 | K129: =DATA!O129 -> FR00000000970035 | L129: =DATA!P129 -> FR00000000990161
A130: =DATA!C130 -> CZ00000003552952 | B130: =DATA!D130 ->  | C130: =DATA!E130 ->  | D130: =DATA!H130 -> 0 | E130: =DATA!I130 -> 0 | F130: =DATA!J130 ->  | G130: =DATA!K130 ->  | H130: =DATA!L130 ->  | I130: =DATA!M130 ->  | J130: =DATA!N130 -> 0 | K130: =DATA!O130 -> FR00000000990113 | L130: =DATA!P130 -> CZ00000006700052
A131: =DATA!C131 -> CZ00000003554952 | B131: =DATA!D131 ->  | C131: =DATA!E131 ->  | D131: =DATA!H131 -> 0 | E131: =DATA!I131 -> 0 | F131: =DATA!J131 ->  | G131: =DATA!K131 ->  | H131: =DATA!L131 ->  | I131: =DATA!M131 ->  | J131: =DATA!N131 -> 0 | K131: =DATA!O131 -> CZ00000003113505 | L131: =DATA!P131 -> CZ00000006700052
A132: =DATA!C132 -> CZ00000003555952 | B132: =DATA!D132 ->  | C132: =DATA!E132 ->  | D132: =DATA!H132 -> 0 | E132: =DATA!I132 -> 0 | F132: =DATA!J132 ->  | G132: =DATA!K132 ->  | H132: =DATA!L132 ->  | I132: =DATA!M132 ->  | J132: =DATA!N132 -> 0 | K132: =DATA!O132 -> FR00000000980011 | L132: =DATA!P132 -> CZ00000006700052
A133: =DATA!C133 -> CZ00000003556952 | B133: =DATA!D133 ->  | C133: =DATA!E133 ->  | D133: =DATA!H133 -> 0 | E133: =DATA!I133 -> 0 | F133: =DATA!J133 ->  | G133: =DATA!K133 ->  | H133: =DATA!L133 ->  | I133: =DATA!M133 ->  | J133: =DATA!N133 -> 0 | K133: =DATA!O133 -> FR00000000970035 | L133: =DATA!P133 -> CZ00000006700052
A134: =DATA!C134 -> CZ00000003557952 | B134: =DATA!D134 ->  | C134: =DATA!E134 ->  | D134: =DATA!H134 -> 0 | E134: =DATA!I134 -> 0 | F134: =DATA!J134 ->  | G134: =DATA!K134 ->  | H134: =DATA!L134 ->  | I134: =DATA!M134 ->  | J134: =DATA!N134 -> 0 | K134: =DATA!O134 -> CZ00000003113505 | L134: =DATA!P134 -> CZ00000006700052
A135: =DATA!C135 -> CZ00000003558952 | B135: =DATA!D135 ->  | C135: =DATA!E135 ->  | D135: =DATA!H135 -> 0 | E135: =DATA!I135 -> 0 | F135: =DATA!J135 ->  | G135: =DATA!K135 ->  | H135: =DATA!L135 -> Fem | I135: =DATA!M135 ->  | J135: =DATA!N135 -> 0 | K135: =DATA!O135 -> CZ00000003114505 | L135: =DATA!P135 -> CZ00000006700052
A136: =DATA!C136 -> CZ00000003560952 | B136: =DATA!D136 ->  | C136: =DATA!E136 ->  | D136: =DATA!H136 -> 0 | E136: =DATA!I136 -> 0 | F136: =DATA!J136 ->  | G136: =DATA!K136 ->  | H136: =DATA!L136 -> Fem | I136: =DATA!M136 ->  | J136: =DATA!N136 -> 0 | K136: =DATA!O136 -> 0000000000000000 | L136: =DATA!P136 -> CZ00000006700052
A137: =DATA!C137 -> CZ00000004181052 | B137: =DATA!D137 ->  | C137: =DATA!E137 ->  | D137: =DATA!H137 -> 0 | E137: =DATA!I137 -> 0 | F137: =DATA!J137 ->  | G137: =DATA!K137 ->  | H137: =DATA!L137 ->  | I137: =DATA!M137 ->  | J137: =DATA!N137 -> 31 | K137: =DATA!O137 -> 5053400870000000 | L137: =DATA!P137 -> CZ00000006700052
A138: =DATA!C138 -> CZ00000004183052 | B138: =DATA!D138 ->  | C138: =DATA!E138 ->  | D138: =DATA!H138 -> 0 | E138: =DATA!I138 -> 0 | F138: =DATA!J138 ->  | G138: =DATA!K138 ->  | H138: =DATA!L138 ->  | I138: =DATA!M138 ->  | J138: =DATA!N138 -> 32 | K138: =DATA!O138 -> 5053431140087020 | L138: =DATA!P138 -> CZ00000006700052
A139: =DATA!C139 -> CZ00000004184052 | B139: =DATA!D139 ->  | C139: =DATA!E139 ->  | D139: =DATA!H139 -> 0 | E139: =DATA!I139 -> 0 | F139: =DATA!J139 ->  | G139: =DATA!K139 ->  | H139: =DATA!L139 ->  | I139: =DATA!M139 ->  | J139: =DATA!N139 -> 31 | K139: =DATA!O139 -> CZ00000003115505 | L139: =DATA!P139 -> CZ00000006700052
A140: =DATA!C140 -> CZ00000004185052 | B140: =DATA!D140 ->  | C140: =DATA!E140 ->  | D140: =DATA!H140 -> 0 | E140: =DATA!I140 -> 0 | F140: =DATA!J140 ->  | G140: =DATA!K140 ->  | H140: =DATA!L140 ->  | I140: =DATA!M140 ->  | J140: =DATA!N140 -> 31 | K140: =DATA!O140 -> CZ00000003113505 | L140: =DATA!P140 -> CZ00000006700052
A141: =DATA!C141 -> CZ00000004186052 | B141: =DATA!D141 -> BEL-0006 | C141: =DATA!E141 -> BELIER | D141: =DATA!H141 -> 38027 | E141: =DATA!I141 -> 0 | F141: =DATA!J141 ->  | G141: =DATA!K141 -> EB | H141: =DATA!L141 -> Mal | I141: =DATA!M141 -> ARR/ARR | J141: =DATA!N141 -> 30 | K141: =DATA!O141 -> CZ00000003113505 | L141: =DATA!P141 -> CZ00000006700052
A142: =DATA!C142 -> CZ00000004199052 | B142: =DATA!D142 ->  | C142: =DATA!E142 ->  | D142: =DATA!H142 -> 0 | E142: =DATA!I142 -> 0 | F142: =DATA!J142 ->  | G142: =DATA!K142 ->  | H142: =DATA!L142 ->  | I142: =DATA!M142 ->  | J142: =DATA!N142 -> 0 | K142: =DATA!O142 -> FR00000000970035 | L142: =DATA!P142 -> CZ00000006232052
A143: =DATA!C143 -> CZ00000004200052 | B143: =DATA!D143 ->  | C143: =DATA!E143 ->  | D143: =DATA!H143 -> 0 | E143: =DATA!I143 -> 0 | F143: =DATA!J143 ->  | G143: =DATA!K143 ->  | H143: =DATA!L143 ->  | I143: =DATA!M143 ->  | J143: =DATA!N143 -> 0 | K143: =DATA!O143 -> CZ00000003560952 | L143: =DATA!P143 -> CZ00000006233052
A144: =DATA!C144 -> CZ00000005241952 | B144: =DATA!D144 ->  | C144: =DATA!E144 ->  | D144: =DATA!H144 -> 0 | E144: =DATA!I144 -> 0 | F144: =DATA!J144 ->  | G144: =DATA!K144 ->  | H144: =DATA!L144 ->  | I144: =DATA!M144 ->  | J144: =DATA!N144 -> 31 | K144: =DATA!O144 -> FR00000000990113 | L144: =DATA!P144 -> CZ00000006700052
A145: =DATA!C145 -> CZ00000005246952 | B145: =DATA!D145 ->  | C145: =DATA!E145 ->  | D145: =DATA!H145 -> 0 | E145: =DATA!I145 -> 0 | F145: =DATA!J145 ->  | G145: =DATA!K145 ->  | H145: =DATA!L145 -> Fem | I145: =DATA!M145 ->  | J145: =DATA!N145 -> 0 | K145: =DATA!O145 -> FR00000000990113 | L145: =DATA!P145 -> CZ00000006700052
A146: =DATA!C146 -> CZ00000005251952 | B146: =DATA!D146 ->  | C146: =DATA!E146 ->  | D146: =DATA!H146 -> 0 | E146: =DATA!I146 -> 0 | F146: =DATA!J146 ->  | G146: =DATA!K146 ->  | H146: =DATA!L146 -> Fem | I146: =DATA!M146 ->  | J146: =DATA!N146 -> 0 | K146: =DATA!O146 -> FR00000000980011 | L146: =DATA!P146 -> CZ00000006700052
A147: =DATA!C147 -> CZ00000005252952 | B147: =DATA!D147 ->  | C147: =DATA!E147 ->  | D147: =DATA!H147 -> 0 | E147: =DATA!I147 -> 0 | F147: =DATA!J147 ->  | G147: =DATA!K147 ->  | H147: =DATA!L147 ->  | I147: =DATA!M147 ->  | J147: =DATA!N147 -> 35 | K147: =DATA!O147 -> FR00000000970035 | L147: =DATA!P147 -> CZ00000006700052
A148: =DATA!C148 -> CZ00000005267952 | B148: =DATA!D148 ->  | C148: =DATA!E148 ->  | D148: =DATA!H148 -> 0 | E148: =DATA!I148 -> 0 | F148: =DATA!J148 ->  | G148: =DATA!K148 ->  | H148: =DATA!L148 ->  | I148: =DATA!M148 ->  | J148: =DATA!N148 -> 29 | K148: =DATA!O148 -> CZ00000003113505 | L148: =DATA!P148 -> CZ00000006700052
A149: =DATA!C149 -> CZ00000005280952 | B149: =DATA!D149 ->  | C149: =DATA!E149 ->  | D149: =DATA!H149 -> 0 | E149: =DATA!I149 -> 0 | F149: =DATA!J149 ->  | G149: =DATA!K149 ->  | H149: =DATA!L149 ->  | I149: =DATA!M149 ->  | J149: =DATA!N149 -> 27 | K149: =DATA!O149 -> CZ00000003113505 | L149: =DATA!P149 -> CZ00000006700052
A150: =DATA!C150 -> CZ00000006232052 | B150: =DATA!D150 -> EMI-0001 | C150: =DATA!E150 -> EMILIO | D150: =DATA!H150 -> 37671 | E150: =DATA!I150 -> 0 | F150: =DATA!J150 ->  | G150: =DATA!K150 -> ER | H150: =DATA!L150 -> Mal | I150: =DATA!M150 -> ARR/ARR | J150: =DATA!N150 -> 0 | K150: =DATA!O150 -> 9902199077000000 | L150: =DATA!P150 -> 9902100051000000
A151: =DATA!C151 -> CZ00000006233052 | B151: =DATA!D151 -> ERR-0001 | C151: =DATA!E151 -> ERROL | D151: =DATA!H151 -> 37671 | E151: =DATA!I151 -> 2 | F151: =DATA!J151 ->  | G151: =DATA!K151 -> ER | H151: =DATA!L151 -> Mal | I151: =DATA!M151 -> ARR/ARR | J151: =DATA!N151 -> 0 | K151: =DATA!O151 -> 9902198012000000 | L151: =DATA!P151 -> 9902198094000000
A152: =DATA!C152 -> CZ00000006691052 | B152: =DATA!D152 -> BEL-0003 | C152: =DATA!E152 -> BELIER | D152: =DATA!H152 -> 37679 | E152: =DATA!I152 -> 0 | F152: =DATA!J152 ->  | G152: =DATA!K152 -> EB | H152: =DATA!L152 ->  | I152: =DATA!M152 -> ALRR/ALHQ | J152: =DATA!N152 -> 0 | K152: =DATA!O152 -> FR00000000980011 | L152: =DATA!P152 -> CZ00000006700052
A153: =DATA!C153 -> CZ00000006693052 | B153: =DATA!D153 ->  | C153: =DATA!E153 ->  | D153: =DATA!H153 -> 0 | E153: =DATA!I153 -> 0 | F153: =DATA!J153 ->  | G153: =DATA!K153 ->  | H153: =DATA!L153 ->  | I153: =DATA!M153 ->  | J153: =DATA!N153 -> 34 | K153: =DATA!O153 -> FR00000000970035 | L153: =DATA!P153 -> CZ00000006700052
A154: =DATA!C154 -> CZ00000006694052 | B154: =DATA!D154 ->  | C154: =DATA!E154 ->  | D154: =DATA!H154 -> 0 | E154: =DATA!I154 -> 0 | F154: =DATA!J154 ->  | G154: =DATA!K154 ->  | H154: =DATA!L154 ->  | I154: =DATA!M154 ->  | J154: =DATA!N154 -> 36 | K154: =DATA!O154 -> 5053400870000000 | L154: =DATA!P154 -> CZ00000006700052
A155: =DATA!C155 -> CZ00000006695052 | B155: =DATA!D155 ->  | C155: =DATA!E155 ->  | D155: =DATA!H155 -> 0 | E155: =DATA!I155 -> 0 | F155: =DATA!J155 ->  | G155: =DATA!K155 ->  | H155: =DATA!L155 ->  | I155: =DATA!M155 ->  | J155: =DATA!N155 -> 31 | K155: =DATA!O155 -> CZ00000003115505 | L155: =DATA!P155 -> CZ00000006700052
A156: =DATA!C156 -> CZ00000006696052 | B156: =DATA!D156 ->  | C156: =DATA!E156 ->  | D156: =DATA!H156 -> 0 | E156: =DATA!I156 -> 0 | F156: =DATA!J156 ->  | G156: =DATA!K156 ->  | H156: =DATA!L156 ->  | I156: =DATA!M156 ->  | J156: =DATA!N156 -> 34 | K156: =DATA!O156 -> 50534052511FR000 | L156: =DATA!P156 -> CZ00000006232052
A157: =DATA!C157 -> CZ00000006700052 | B157: =DATA!D157 ->  | C157: =DATA!E157 ->  | D157: =DATA!H157 -> 0 | E157: =DATA!I157 -> 0 | F157: =DATA!J157 ->  | G157: =DATA!K157 ->  | H157: =DATA!L157 -> Mal | I157: =DATA!M157 ->  | J157: =DATA!N157 -> 0 | K157: =DATA!O157 -> 9902161040JS0000 | L157: =DATA!P157 -> 9902140550JS0000
A158: =DATA!C158 -> CZ00000018222052 | B158: =DATA!D158 ->  | C158: =DATA!E158 ->  | D158: =DATA!H158 -> 0 | E158: =DATA!I158 -> 0 | F158: =DATA!J158 ->  | G158: =DATA!K158 ->  | H158: =DATA!L158 ->  | I158: =DATA!M158 ->  | J158: =DATA!N158 -> 0 | K158: =DATA!O158 -> FR00000000990113 | L158: =DATA!P158 -> CZ00000006233052
A159: =DATA!C159 -> CZ00000018223052 | B159: =DATA!D159 ->  | C159: =DATA!E159 ->  | D159: =DATA!H159 -> 0 | E159: =DATA!I159 -> 0 | F159: =DATA!J159 ->  | G159: =DATA!K159 ->  | H159: =DATA!L159 ->  | I159: =DATA!M159 ->  | J159: =DATA!N159 -> 39 | K159: =DATA!O159 -> 50534052511FR000 | L159: =DATA!P159 -> CZ00000006232052
A160: =DATA!C160 -> CZ00000021252952 | B160: =DATA!D160 ->  | C160: =DATA!E160 ->  | D160: =DATA!H160 -> 0 | E160: =DATA!I160 -> 0 | F160: =DATA!J160 ->  | G160: =DATA!K160 ->  | H160: =DATA!L160 ->  | I160: =DATA!M160 ->  | J160: =DATA!N160 -> 28 | K160: =DATA!O160 -> CZ00000003114505 | L160: =DATA!P160 -> CZ00000006700052
A161: =DATA!C161 -> CZ00000021253952 | B161: =DATA!D161 ->  | C161: =DATA!E161 ->  | D161: =DATA!H161 -> 0 | E161: =DATA!I161 -> 0 | F161: =DATA!J161 ->  | G161: =DATA!K161 ->  | H161: =DATA!L161 -> Fem | I161: =DATA!M161 ->  | J161: =DATA!N161 -> 33 | K161: =DATA!O161 -> FR00000000970035 | L161: =DATA!P161 -> CZ00000006232052
A162: =DATA!C162 -> CZ00000021269952 | B162: =DATA!D162 ->  | C162: =DATA!E162 ->  | D162: =DATA!H162 -> 0 | E162: =DATA!I162 -> 0 | F162: =DATA!J162 ->  | G162: =DATA!K162 ->  | H162: =DATA!L162 ->  | I162: =DATA!M162 ->  | J162: =DATA!N162 -> 31 | K162: =DATA!O162 -> FR00000000980011 | L162: =DATA!P162 -> CZ00000006233052
A163: =DATA!C163 -> CZ00000021270952 | B163: =DATA!D163 ->  | C163: =DATA!E163 ->  | D163: =DATA!H163 -> 0 | E163: =DATA!I163 -> 0 | F163: =DATA!J163 ->  | G163: =DATA!K163 ->  | H163: =DATA!L163 ->  | I163: =DATA!M163 ->  | J163: =DATA!N163 -> 0 | K163: =DATA!O163 -> CZ00000003115505 | L163: =DATA!P163 -> CZ00000006700052
A164: =DATA!C164 -> CZ00000021271952 | B164: =DATA!D164 ->  | C164: =DATA!E164 ->  | D164: =DATA!H164 -> 0 | E164: =DATA!I164 -> 0 | F164: =DATA!J164 ->  | G164: =DATA!K164 ->  | H164: =DATA!L164 ->  | I164: =DATA!M164 ->  | J164: =DATA!N164 -> 0 | K164: =DATA!O164 -> CZ00000003558952 | L164: =DATA!P164 -> CZ00000006232052
A165: =DATA!C165 -> CZ00000021279952 | B165: =DATA!D165 ->  | C165: =DATA!E165 ->  | D165: =DATA!H165 -> 0 | E165: =DATA!I165 -> 0 | F165: =DATA!J165 ->  | G165: =DATA!K165 ->  | H165: =DATA!L165 -> Fem | I165: =DATA!M165 ->  | J165: =DATA!N165 -> 0 | K165: =DATA!O165 -> 5053403650000000 | L165: =DATA!P165 -> CZ00000006233052
A166: =DATA!C166 -> CZ00000021280952 | B166: =DATA!D166 ->  | C166: =DATA!E166 ->  | D166: =DATA!H166 -> 0 | E166: =DATA!I166 -> 0 | F166: =DATA!J166 ->  | G166: =DATA!K166 ->  | H166: =DATA!L166 -> Fem | I166: =DATA!M166 ->  | J166: =DATA!N166 -> 0 | K166: =DATA!O166 -> FR00000000990113 | L166: =DATA!P166 -> CZ00000006233052
A167: =DATA!C167 -> CZ00000021285952 | B167: =DATA!D167 ->  | C167: =DATA!E167 ->  | D167: =DATA!H167 -> 0 | E167: =DATA!I167 -> 0 | F167: =DATA!J167 ->  | G167: =DATA!K167 ->  | H167: =DATA!L167 -> Fem | I167: =DATA!M167 ->  | J167: =DATA!N167 -> 33 | K167: =DATA!O167 -> CZ00000005251952 | L167: =DATA!P167 -> 0000000000000000
A168: =DATA!C168 -> CZ00000021289952 | B168: =DATA!D168 ->  | C168: =DATA!E168 ->  | D168: =DATA!H168 -> 0 | E168: =DATA!I168 -> 0 | F168: =DATA!J168 ->  | G168: =DATA!K168 ->  | H168: =DATA!L168 -> Fem | I168: =DATA!M168 ->  | J168: =DATA!N168 -> 31 | K168: =DATA!O168 -> CZ00000021279952 | L168: =DATA!P168 -> 0000000000000000
A169: =DATA!C169 -> CZ00000021298952 | B169: =DATA!D169 ->  | C169: =DATA!E169 ->  | D169: =DATA!H169 -> 0 | E169: =DATA!I169 -> 0 | F169: =DATA!J169 ->  | G169: =DATA!K169 ->  | H169: =DATA!L169 -> Fem | I169: =DATA!M169 ->  | J169: =DATA!N169 -> 0 | K169: =DATA!O169 -> CZ00000003115505 | L169: =DATA!P169 -> 0000000000000000
A170: =DATA!C170 -> CZ00000021299952 | B170: =DATA!D170 ->  | C170: =DATA!E170 ->  | D170: =DATA!H170 -> 0 | E170: =DATA!I170 -> 0 | F170: =DATA!J170 ->  | G170: =DATA!K170 ->  | H170: =DATA!L170 ->  | I170: =DATA!M170 ->  | J170: =DATA!N170 -> 0 | K170: =DATA!O170 -> CZ00000003115505 | L170: =DATA!P170 -> CZ00000006700052
A171: =DATA!C171 -> CZ00000021738052 | B171: =DATA!D171 ->  | C171: =DATA!E171 ->  | D171: =DATA!H171 -> 0 | E171: =DATA!I171 -> 0 | F171: =DATA!J171 ->  | G171: =DATA!K171 ->  | H171: =DATA!L171 ->  | I171: =DATA!M171 ->  | J171: =DATA!N171 -> 27 | K171: =DATA!O171 -> FR00000000990113 | L171: =DATA!P171 -> CZ00000006233052
A172: =DATA!C172 -> CZ00000021749052 | B172: =DATA!D172 ->  | C172: =DATA!E172 ->  | D172: =DATA!H172 -> 0 | E172: =DATA!I172 -> 0 | F172: =DATA!J172 ->  | G172: =DATA!K172 ->  | H172: =DATA!L172 ->  | I172: =DATA!M172 ->  | J172: =DATA!N172 -> 26 | K172: =DATA!O172 -> CZ00000005246952 | L172: =DATA!P172 -> CZ00000006232052
A173: =DATA!C173 -> CZ00000021753052 | B173: =DATA!D173 ->  | C173: =DATA!E173 ->  | D173: =DATA!H173 -> 0 | E173: =DATA!I173 -> 0 | F173: =DATA!J173 ->  | G173: =DATA!K173 ->  | H173: =DATA!L173 ->  | I173: =DATA!M173 ->  | J173: =DATA!N173 -> 28 | K173: =DATA!O173 -> CZ00000005251952 | L173: =DATA!P173 -> CZ00000006232052
A174: =DATA!C174 -> CZ00000021754052 | B174: =DATA!D174 ->  | C174: =DATA!E174 ->  | D174: =DATA!H174 -> 0 | E174: =DATA!I174 -> 0 | F174: =DATA!J174 ->  | G174: =DATA!K174 ->  | H174: =DATA!L174 ->  | I174: =DATA!M174 ->  | J174: =DATA!N174 -> 28 | K174: =DATA!O174 -> CZ00000003115505 | L174: =DATA!P174 -> CZ00000006232052
A175: =DATA!C175 -> CZ00000022722053 | B175: =DATA!D175 ->  | C175: =DATA!E175 ->  | D175: =DATA!H175 -> 0 | E175: =DATA!I175 -> 0 | F175: =DATA!J175 ->  | G175: =DATA!K175 ->  | H175: =DATA!L175 ->  | I175: =DATA!M175 ->  | J175: =DATA!N175 -> 34 | K175: =DATA!O175 -> CZ00000021253952 | L175: =DATA!P175 -> CZ00000004186052
A176: =DATA!C176 -> CZ00000022800053 | B176: =DATA!D176 ->  | C176: =DATA!E176 ->  | D176: =DATA!H176 -> 0 | E176: =DATA!I176 -> 0 | F176: =DATA!J176 ->  | G176: =DATA!K176 ->  | H176: =DATA!L176 ->  | I176: =DATA!M176 ->  | J176: =DATA!N176 -> 37 | K176: =DATA!O176 -> NL00262826040000 | L176: =DATA!P176 -> NL00202181200360
A177: =DATA!C177 -> CZ00000023333953 | B177: =DATA!D177 ->  | C177: =DATA!E177 ->  | D177: =DATA!H177 -> 0 | E177: =DATA!I177 -> 0 | F177: =DATA!J177 ->  | G177: =DATA!K177 ->  | H177: =DATA!L177 -> Fem | I177: =DATA!M177 ->  | J177: =DATA!N177 -> 0 | K177: =DATA!O177 ->  | L177: =DATA!P177 -> 
A178: =DATA!C178 -> CZ00000025217952 | B178: =DATA!D178 ->  | C178: =DATA!E178 ->  | D178: =DATA!H178 -> 0 | E178: =DATA!I178 -> 0 | F178: =DATA!J178 ->  | G178: =DATA!K178 ->  | H178: =DATA!L178 ->  | I178: =DATA!M178 ->  | J178: =DATA!N178 -> 29 | K178: =DATA!O178 -> CZ00000003114505 | L178: =DATA!P178 -> 0000000000000000
A179: =DATA!C179 -> CZ00000025222952 | B179: =DATA!D179 ->  | C179: =DATA!E179 ->  | D179: =DATA!H179 -> 0 | E179: =DATA!I179 -> 0 | F179: =DATA!J179 ->  | G179: =DATA!K179 ->  | H179: =DATA!L179 ->  | I179: =DATA!M179 ->  | J179: =DATA!N179 -> 29 | K179: =DATA!O179 -> CZ00000021280952 | L179: =DATA!P179 -> 0000000000000000
A180: =DATA!C180 -> CZ00000025228952 | B180: =DATA!D180 ->  | C180: =DATA!E180 ->  | D180: =DATA!H180 -> 0 | E180: =DATA!I180 -> 0 | F180: =DATA!J180 ->  | G180: =DATA!K180 ->  | H180: =DATA!L180 -> Fem | I180: =DATA!M180 ->  | J180: =DATA!N180 -> 33 | K180: =DATA!O180 -> CZ00000005251952 | L180: =DATA!P180 -> 0000000000000000
A181: =DATA!C181 -> CZ00000025231952 | B181: =DATA!D181 ->  | C181: =DATA!E181 ->  | D181: =DATA!H181 -> 0 | E181: =DATA!I181 -> 0 | F181: =DATA!J181 ->  | G181: =DATA!K181 ->  | H181: =DATA!L181 -> Fem | I181: =DATA!M181 ->  | J181: =DATA!N181 -> 28 | K181: =DATA!O181 -> CZ00000005246952 | L181: =DATA!P181 -> 0000000000000000
A182: =DATA!C182 -> CZ00000025246952 | B182: =DATA!D182 ->  | C182: =DATA!E182 ->  | D182: =DATA!H182 -> 0 | E182: =DATA!I182 -> 0 | F182: =DATA!J182 ->  | G182: =DATA!K182 ->  | H182: =DATA!L182 -> Fem | I182: =DATA!M182 ->  | J182: =DATA!N182 -> 25 | K182: =DATA!O182 -> CZ00000005246952 | L182: =DATA!P182 -> CZ00000006232052
A183: =DATA!C183 -> CZ00000025255952 | B183: =DATA!D183 ->  | C183: =DATA!E183 ->  | D183: =DATA!H183 -> 0 | E183: =DATA!I183 -> 0 | F183: =DATA!J183 ->  | G183: =DATA!K183 ->  | H183: =DATA!L183 ->  | I183: =DATA!M183 ->  | J183: =DATA!N183 -> 26 | K183: =DATA!O183 -> CZ00000025228952 | L183: =DATA!P183 -> CZ00000006233052
A184: =DATA!C184 -> CZ00000025259952 | B184: =DATA!D184 ->  | C184: =DATA!E184 ->  | D184: =DATA!H184 -> 0 | E184: =DATA!I184 -> 0 | F184: =DATA!J184 ->  | G184: =DATA!K184 ->  | H184: =DATA!L184 -> Fem | I184: =DATA!M184 ->  | J184: =DATA!N184 -> 27 | K184: =DATA!O184 -> CZ00000003115505 | L184: =DATA!P184 -> CZ00000006232052
A185: =DATA!C185 -> CZ00000025261952 | B185: =DATA!D185 ->  | C185: =DATA!E185 ->  | D185: =DATA!H185 -> 0 | E185: =DATA!I185 -> 0 | F185: =DATA!J185 ->  | G185: =DATA!K185 ->  | H185: =DATA!L185 ->  | I185: =DATA!M185 ->  | J185: =DATA!N185 -> 26 | K185: =DATA!O185 -> CZ00000025231952 | L185: =DATA!P185 -> CZ00000006233052
A186: =DATA!C186 -> CZ00000026104953 | B186: =DATA!D186 ->  | C186: =DATA!E186 ->  | D186: =DATA!H186 -> 0 | E186: =DATA!I186 -> 0 | F186: =DATA!J186 ->  | G186: =DATA!K186 ->  | H186: =DATA!L186 -> Fem | I186: =DATA!M186 ->  | J186: =DATA!N186 -> 0 | K186: =DATA!O186 ->  | L186: =DATA!P186 -> 
A187: =DATA!C187 -> CZ00000026150953 | B187: =DATA!D187 ->  | C187: =DATA!E187 ->  | D187: =DATA!H187 -> 0 | E187: =DATA!I187 -> 0 | F187: =DATA!J187 ->  | G187: =DATA!K187 ->  | H187: =DATA!L187 -> Fem | I187: =DATA!M187 ->  | J187: =DATA!N187 -> 30 | K187: =DATA!O187 -> CZ00000021253952 | L187: =DATA!P187 -> NL00202181200391
A188: =DATA!C188 -> CZ00000026151953 | B188: =DATA!D188 ->  | C188: =DATA!E188 ->  | D188: =DATA!H188 -> 0 | E188: =DATA!I188 -> 0 | F188: =DATA!J188 ->  | G188: =DATA!K188 ->  | H188: =DATA!L188 ->  | I188: =DATA!M188 ->  | J188: =DATA!N188 -> 29 | K188: =DATA!O188 -> NL00262826036000 | L188: =DATA!P188 -> NL00202181200360
A189: =DATA!C189 -> CZ00000026155953 | B189: =DATA!D189 ->  | C189: =DATA!E189 ->  | D189: =DATA!H189 -> 0 | E189: =DATA!I189 -> 0 | F189: =DATA!J189 ->  | G189: =DATA!K189 ->  | H189: =DATA!L189 -> Fem | I189: =DATA!M189 ->  | J189: =DATA!N189 -> 30 | K189: =DATA!O189 -> NL00262826044000 | L189: =DATA!P189 -> NL00202181200360
A190: =DATA!C190 -> CZ00000026970053 | B190: =DATA!D190 ->  | C190: =DATA!E190 ->  | D190: =DATA!H190 -> 0 | E190: =DATA!I190 -> 0 | F190: =DATA!J190 ->  | G190: =DATA!K190 ->  | H190: =DATA!L190 ->  | I190: =DATA!M190 ->  | J190: =DATA!N190 -> 30 | K190: =DATA!O190 -> CZ00000023333953 | L190: =DATA!P190 -> NL00202181200391
A191: =DATA!C191 -> CZ00000026998053 | B191: =DATA!D191 ->  | C191: =DATA!E191 ->  | D191: =DATA!H191 -> 0 | E191: =DATA!I191 -> 0 | F191: =DATA!J191 ->  | G191: =DATA!K191 ->  | H191: =DATA!L191 ->  | I191: =DATA!M191 ->  | J191: =DATA!N191 -> 29 | K191: =DATA!O191 -> CZ00000023333953 | L191: =DATA!P191 -> NL00202181200391
A192: =DATA!C192 -> CZ00000027649052 | B192: =DATA!D192 ->  | C192: =DATA!E192 ->  | D192: =DATA!H192 -> 0 | E192: =DATA!I192 -> 0 | F192: =DATA!J192 ->  | G192: =DATA!K192 ->  | H192: =DATA!L192 ->  | I192: =DATA!M192 ->  | J192: =DATA!N192 -> 0 | K192: =DATA!O192 -> CZ00000003114505 | L192: =DATA!P192 -> CZ00000006233052
A193: =DATA!C193 -> CZ00000027653052 | B193: =DATA!D193 ->  | C193: =DATA!E193 ->  | D193: =DATA!H193 -> 0 | E193: =DATA!I193 -> 0 | F193: =DATA!J193 ->  | G193: =DATA!K193 ->  | H193: =DATA!L193 ->  | I193: =DATA!M193 ->  | J193: =DATA!N193 -> 30 | K193: =DATA!O193 -> CZ00000003558952 | L193: =DATA!P193 -> CZ00000006233052
A194: =DATA!C194 -> CZ00000027678052 | B194: =DATA!D194 ->  | C194: =DATA!E194 ->  | D194: =DATA!H194 -> 0 | E194: =DATA!I194 -> 0 | F194: =DATA!J194 ->  | G194: =DATA!K194 ->  | H194: =DATA!L194 ->  | I194: =DATA!M194 ->  | J194: =DATA!N194 -> 27 | K194: =DATA!O194 -> CZ00000025231952 | L194: =DATA!P194 -> CZ00000006232052
A195: =DATA!C195 -> CZ00000027684052 | B195: =DATA!D195 ->  | C195: =DATA!E195 ->  | D195: =DATA!H195 -> 0 | E195: =DATA!I195 -> 0 | F195: =DATA!J195 ->  | G195: =DATA!K195 ->  | H195: =DATA!L195 ->  | I195: =DATA!M195 ->  | J195: =DATA!N195 -> 41 | K195: =DATA!O195 -> CZ00000021279952 | L195: =DATA!P195 -> CZ00000006232052
A196: =DATA!C196 -> CZ00000027685052 | B196: =DATA!D196 ->  | C196: =DATA!E196 ->  | D196: =DATA!H196 -> 0 | E196: =DATA!I196 -> 1 | F196: =DATA!J196 ->  | G196: =DATA!K196 ->  | H196: =DATA!L196 ->  | I196: =DATA!M196 ->  | J196: =DATA!N196 -> 47 | K196: =DATA!O196 -> 5053431140087020 | L196: =DATA!P196 -> CZ00000006232052
A197: =DATA!C197 -> CZ00000027687052 | B197: =DATA!D197 ->  | C197: =DATA!E197 ->  | D197: =DATA!H197 -> 0 | E197: =DATA!I197 -> 0 | F197: =DATA!J197 ->  | G197: =DATA!K197 ->  | H197: =DATA!L197 ->  | I197: =DATA!M197 ->  | J197: =DATA!N197 -> 24 | K197: =DATA!O197 -> FR00000000970035 | L197: =DATA!P197 -> CZ00000006232052
A198: =DATA!C198 -> CZ00000027688052 | B198: =DATA!D198 ->  | C198: =DATA!E198 ->  | D198: =DATA!H198 -> 0 | E198: =DATA!I198 -> 0 | F198: =DATA!J198 ->  | G198: =DATA!K198 ->  | H198: =DATA!L198 ->  | I198: =DATA!M198 ->  | J198: =DATA!N198 -> 0 | K198: =DATA!O198 -> CZ00000025228952 | L198: =DATA!P198 -> CZ00000006232052
A199: =DATA!C199 -> CZ00000027690052 | B199: =DATA!D199 ->  | C199: =DATA!E199 ->  | D199: =DATA!H199 -> 0 | E199: =DATA!I199 -> 0 | F199: =DATA!J199 ->  | G199: =DATA!K199 ->  | H199: =DATA!L199 ->  | I199: =DATA!M199 ->  | J199: =DATA!N199 -> 32 | K199: =DATA!O199 -> CZ00000021298952 | L199: =DATA!P199 -> CZ00000006232052
A200: =DATA!C200 -> CZ00000027693052 | B200: =DATA!D200 ->  | C200: =DATA!E200 ->  | D200: =DATA!H200 -> 0 | E200: =DATA!I200 -> 0 | F200: =DATA!J200 ->  | G200: =DATA!K200 ->  | H200: =DATA!L200 ->  | I200: =DATA!M200 ->  | J200: =DATA!N200 -> 36 | K200: =DATA!O200 -> CZ00000025259952 | L200: =DATA!P200 -> CZ00000006233052
... 1437 more rows
